Cogmind - Beta 9.3 @@@ ROGUE MODE // 2020.02.01 @ 14:10:42 // Winter2019/RPGLIKE Player: badjay Result: Escaped singularity! Performance ------------- Evolutions (9) 4500 Regions Visited (37) 7400 Robots Destroyed (975) 4875 Value Destroyed (50129) 50129 Prototype IDs (164) 3280 Alien Tech Used (14) 2800 Bonus (56459) 56459 TOTAL SCORE: 129443 Bonus ------- Triggered High Security 1000 High Alert Combat Kills 11109 Follower Combat Kills 3563 Network Hubs Disabled 600 Met Data Miner 300 Built Enhanced Grunts 300 Met R17 at Cetus 500 Hacked Protovariant 500 Destroyed MAIN.C Guards 500 Met MAIN.C 5000 Destroyed MAIN.C Shell 5000 Destroyed MAIN.C 10000 Met Architect 300 Destroyed A8 300 Destroyed A6 400 Destroyed A5 500 Destroyed Architect 15000 Win 3000 Friendly Fire -1413 Cogmind --------- Core Integrity 385/600 Matter 395/425 Energy 530/560 System Corruption 0% Temperature Cool (45) Movement Flying (15) Location Near Former Tau Ceti IV Parts ------- > --- POWER (3) -------- Cooled Fission Core Micro Fission Core Zero-point Reactor > --- PROPULSION (3) --- Cooled Q-thruster Cooled Q-thruster Cooled Q-thruster > --- UTILITY (14) ----- Experimental Terrain Scanner Experimental Melee Analysis Suite Experimental Target Analyzer Experimental Core Analyzer Experimental Armor Integrity Analyzer Femtoactuators Experimental Actuator Array Advanced Force Booster Advanced Reaction Control System Experimental Phase Shifter AEGIS Remote Shield Experimental Hacking Suite Architect God Chip D > --- WEAPON (5) ------- Enhanced Force Lance Enhanced Force Lance Enhanced Force Lance Enhanced Force Lance > --- INVENTORY (4) ---- Protomatter-98 Protomatter-97 Protomatter-98 Structural Scanner Peak State ------------ > --- POWER ------------ Cooled Fission Core Micro Fission Core Zero-point Reactor > --- PROPULSION ------- Cooled Q-thruster Cooled Q-thruster Cooled Q-thruster > --- UTILITY ---------- Structural Scanner Experimental Melee Analysis Suite Experimental Target Analyzer Experimental Core Analyzer Experimental Armor Integrity Analyzer Femtoactuators Experimental Actuator Array Advanced Force Booster Advanced Reaction Control System Experimental Phase Shifter AEGIS Remote Shield Experimental Hacking Suite Experimental Hacking Suite Experimental System Shield > --- WEAPON ----------- Omega Cannon Enhanced Force Lance Enhanced Force Lance Enhanced Force Lance > --- INVENTORY -------- Experimental Terrain Scanner High-powered Transdimensional Reconstructor Terrabomb [Rating: 227] Favorites ----------- Power Cooled Ion Engine Engine Cooled Ion Engine Power Core Light Neutrino Core Reactor Mini Fusion Reactor Propulsion Cooled VTOL Module Hover Unit Cooled Antigrav System Flight Unit Cooled VTOL Module Utility Improved Melee Analysis Suite Device Long-range Terrain Scanner Storage Improved Energy Well Processor Improved Melee Analysis Suite Hackware Experimental System Shield Protection Experimental Powered Armor Weapon Lance Energy Gun Improved EM Shotgun Ballistic Gun Light Assault Rifle Ballistic Cannon Omega Cannon Impact Weapon Powered Hammer Slashing Weapon Greatsword Piercing Weapon Lance Special Melee Weapon Improved Datajack Build | -11 -10 -10 -9 -9 -8 -7 -7 -7 -7 -7 -7 -6 -6 -6 -6 -6 -5 -5 -5 -5 -5 -5 -5 -5 -4 -4 -4 -4 -4 -3 -3 -2 -2 -2 -1 -1 -1 ------- Run | Scr Mat Min Mat Sto Mat Fac Was Fac Low Low Zio Pro Fac Low Low Dat Pro Fac Was Fac Ext Cet Arc Hub Fac Was Fac Arm Lab Res Tes Res Qua Sec Acc Com Ac0 Slots Evolved 18 | . 1 1 5 2 2 3 . . . . . 1 . . . . . 1 . . . . . . . 1 . . . . . 1 . . . . . Power 1 | . . . 1 . . . . . . . . . . . . . . . . . . . . . . . . . . . . . . . . . . Propulsion 1 | . . 1 . . . . . . . . . . . . . . . . . . . . . . . . . . . . . . . . . . . Utility 13 | . . . 3 1 2 3 . . . . . 1 . . . . . 1 . . . . . . . 1 . . . . . 1 . . . . . Weapon 3 | . 1 . 1 1 . . . . . . . . . . . . . . . . . . . . . . . . . . . . . . . . . Parts Attached 316 | . 4 2 17 8 10 33 . 18 1 . 3 3 20 3 1 . 3 23 . 6 3 2 . 3 5 4 9 13 . 30 17 13 4 14 4 28 12 Power 25 | . 1 . 4 . . 1 . 2 . . . . 5 . . . . 3 . 1 . . . . . . . . . . . 3 . . 1 3 1 Engine 14 | . 1 . 4 . . 1 . 2 . . . . 5 . . . . 1 . . . . . . . . . . . . . . . . . . . Core 5 | . . . . . . . . . . . . . . . . . . 1 . 1 . . . . . . . . . . . 1 . . . 2 . Reactor 6 | . . . . . . . . . . . . . . . . . . 1 . . . . . . . . . . . . . 2 . . 1 1 1 Propulsion 23 | . 1 2 3 2 . 1 . 1 . . . . 4 . . . . . . . . . . . . . . 2 . 1 1 2 . . 1 2 . Treads . | . . . . . . . . . . . . . . . . . . . . . . . . . . . . . . . . . . . . . . Leg . | . . . . . . . . . . . . . . . . . . . . . . . . . . . . . . . . . . . . . . Wheel . | . . . . . . . . . . . . . . . . . . . . . . . . . . . . . . . . . . . . . . Hover 1 | . . . . . . . . . . . . . . . . . . . . . . . . . . . . . . . . . . . . 1 . Flight 22 | . 1 2 3 2 . 1 . 1 . . . . 4 . . . . . . . . . . . . . . 2 . 1 1 2 . . 1 1 . Utility 187 | . . . 4 1 6 13 . 9 1 . 2 3 7 3 1 . 1 17 . 4 3 2 . 1 5 4 7 7 . 21 14 8 4 10 2 19 8 Device 132 | . . . . . . 2 . 5 1 . 2 3 5 3 1 . . 12 . 1 2 2 . 1 5 4 5 4 . 18 13 7 4 9 2 15 6 Storage 2 | . . . . . . . . . . . . . . . . . . . . . . . . . . . . . . . . . . . . 1 1 Processor 34 | . . . 4 1 5 8 . 3 . . . . 2 . . . . 2 . 1 1 . . . . . 1 . . 3 1 1 . 1 . . . Hackware 16 | . . . . . 1 3 . 1 . . . . . . . . 1 3 . 2 . . . . . . 1 3 . . . . . . . . 1 Protection 3 | . . . . . . . . . . . . . . . . . . . . . . . . . . . . . . . . . . . . 3 . Artifact . | . . . . . . . . . . . . . . . . . . . . . . . . . . . . . . . . . . . . . . Weapon 81 | . 2 . 6 5 4 18 . 6 . . 1 . 4 . . . 2 3 . 1 . . . 2 . . 2 4 . 8 2 . . 4 . 4 3 Energy Gun 26 | . 2 . 4 3 4 10 . . . . . . . . . . 1 . . . . . . . . . . . . . . . . 1 . . 1 Energy Cannon . | . . . . . . . . . . . . . . . . . . . . . . . . . . . . . . . . . . . . . . Ballistic Gun 5 | . . . 2 . . . . . . . . . . . . . . . . . . . . 1 . . . . . . . . . 1 . 1 . Ballistic Cannon 2 | . . . . . . . . . . . . . . . . . . . . . . . . . . . . . . . . . . . . 1 1 Launcher . | . . . . . . . . . . . . . . . . . . . . . . . . . . . . . . . . . . . . . . Special Weapon . | . . . . . . . . . . . . . . . . . . . . . . . . . . . . . . . . . . . . . . Impact Weapon 4 | . . . . . . . . 2 . . . . . . . . . . . . . . . . . . . 2 . . . . . . . . . Slashing Weapon 14 | . . . . 2 . 8 . 2 . . 1 . . . . . . . . . . . . . . . . . . . 1 . . . . . . Piercing Weapon 29 | . . . . . . . . 2 . . . . 4 . . . 1 2 . 1 . . . 1 . . 2 2 . 8 1 . . 2 . 2 1 Special Melee Weapon 1 | . . . . . . . . . . . . . . . . . . 1 . . . . . . . . . . . . . . . . . . . Unidentified Prototypes 64 | . . . . . . 4 . 2 1 . 1 . 3 . . . . 2 . . . . . . 2 1 1 3 . 8 5 2 5 10 . 8 6 Parts Lost 7 | . 1 . 1 . . 1 . . . . . . . . . . . 2 . 1 . . . . . . . . . . . . . . 1 . . Power 1 | . . . . . . 1 . . . . . . . . . . . . . . . . . . . . . . . . . . . . . . . Propulsion . | . . . . . . . . . . . . . . . . . . . . . . . . . . . . . . . . . . . . . . Utility 4 | . . . . . . . . . . . . . . . . . . 2 . 1 . . . . . . . . . . . . . . 1 . . Weapon 2 | . 1 . 1 . . . . . . . . . . . . . . . . . . . . . . . . . . . . . . . . . . Highest Loss Streak 1 | . 1 . 1 . . 1 . . . . . . . . . . . 1 . 1 . . . . . . . . . . . . . . 1 . . Average Slot Usage (%) 95 | . 64 64 96 100 99 95 94 93 92 89 93 95 94 95 95 95 95 96 100 99 100 100 100 99 100 99 98 100 100 99 99 99 99 98 92 98 99 Engine 7 | . 18 17 12 15 13 12 11 11 10 10 10 10 9 10 10 10 10 6 4 4 4 4 4 4 4 4 4 4 4 4 4 1 . . . . . Core 2 | . . . . . . . . . . . . . . . . . . 2 4 4 4 4 4 4 4 4 4 4 4 4 4 5 4 4 4 7 8 Flight 10 | . 12 28 21 15 13 12 11 11 10 10 10 10 10 10 10 10 10 9 9 9 9 9 9 9 9 9 9 9 9 9 9 8 8 8 10 12 12 Device 17 | . . . . . . 1 5 5 15 15 15 21 25 25 25 25 25 23 23 23 23 23 23 22 23 22 21 22 22 21 21 25 25 25 26 27 27 Processor 23 | . . . 38 36 38 37 33 36 26 26 26 23 20 20 20 20 20 20 23 23 23 23 23 23 23 22 22 20 18 18 18 17 17 16 16 16 16 Hackware 10 | . . . . . 3 10 16 11 10 10 10 10 10 10 10 10 10 11 9 8 9 9 9 9 9 9 11 15 18 18 18 17 17 16 12 12 12 Energy Gun 4 | . 33 17 19 30 27 15 . . . . . . . . . . . . . . . . . . . . . . . . . . . . . . . Slashing Weapon 2 | . . . . . . 5 16 13 5 5 9 10 5 5 5 5 5 2 . . . . . . . . . . . . . . . . . . . Piercing Weapon 13 | . . . . . . . . 2 10 10 10 10 14 15 15 15 14 15 19 20 23 23 23 22 23 22 22 22 22 21 22 21 21 20 20 20 19 Naked Turns 9 | . 9 . . . . . . . . . . . . . . . . . . . . . . . . . . . . . . . . . . . . Heaviest Build 97 | . 9 7 25 28 28 31 30 33 33 33 35 37 49 49 45 45 45 49 45 56 61 57 56 58 56 56 64 66 64 77 77 83 82 82 84 97 97 Greatest Support 118 | 3 14 18 25 32 32 33 33 36 36 36 36 41 50 50 50 54 50 54 54 64 64 60 60 64 60 60 69 77 77 84 79 97 97 97 97 97 118 Greatest Overweight (x) 1 | . 1 . . . . . . . . . . . . . . . . . . . 1 . . . . . . . . . . 1 . . 1 1 . Average Overweight (x) . | . . . . . . . . . . . . . . . . . . . . . . . . . . . . . . . . . . . . . . Largest Inventory Capacity 4 | . . . 1 2 2 4 4 4 4 4 4 4 4 4 4 4 4 4 4 4 4 4 4 4 4 4 4 4 4 4 4 4 4 4 4 4 4 Average Capacity 3 | . . . . 1 2 3 4 4 4 4 4 4 4 4 4 4 4 4 4 4 4 4 4 4 4 4 4 4 4 4 4 4 4 4 4 4 4 Most Carried 4 | . . . 1 2 2 4 2 4 4 4 4 4 4 4 4 4 4 4 4 4 4 4 4 4 4 4 4 4 4 4 4 4 4 4 4 4 4 Average Carried 3 | . . . . 1 1 2 2 3 3 4 4 3 3 4 4 4 4 3 4 4 4 4 4 4 3 3 4 4 4 3 4 3 3 3 3 3 3 Final Capacity 4 | . . . 1 2 2 4 4 4 4 4 4 4 4 4 4 4 4 4 4 4 4 4 4 4 4 4 4 4 4 4 4 4 4 4 4 4 4 Final Carried 4 | . . . 1 2 2 2 2 2 4 4 4 3 4 4 4 4 4 4 4 4 4 4 4 4 4 4 4 4 4 4 4 4 4 4 4 3 4 Class Distribution -------------------- 50% | Hacker-Sprinter 16% | Wizard-Sprinter 12% | Machinist-Sprinter 10% | Wizard-Mutant 5% | Hacker-Mutant Dominant Class ---------------- Hacker-Mutant | -10/Materials Hacker-Mutant | -10/Mines Hacker-Mutant | -9/Materials Hacker-Sprinter | -9/Storage Hacker-Sprinter | -8/Materials Hacker-Sprinter | -7/Factory Hacker-Sprinter | -7/Waste Hacker-Sprinter | -7/Factory Hacker-Sprinter | -7/Lower Caves Hacker-Sprinter | -7/Lower Caves Hacker-Sprinter | -7/Zion Hacker-Sprinter | -6/Proximity Caves Hacker-Sprinter | -6/Factory Machinist-Sprinter | -6/Lower Caves Machinist-Sprinter | -6/Lower Caves Machinist-Sprinter | -6/Data Miner Hacker-Sprinter | -5/Proximity Caves Hacker-Sprinter | -5/Factory Hacker-Sprinter | -5/Waste Hacker-Sprinter | -5/Factory Hacker-Sprinter | -5/Extension Hacker-Sprinter | -5/Cetus Hacker-Sprinter | -5/Archives Hacker-Sprinter | -5/Hub_04(d) Hacker-Sprinter | -4/Factory Hacker-Sprinter | -4/Waste Wizard-Sprinter | -4/Factory Wizard-Mutant | -4/Armory Wizard-Mutant | -4/Lab Wizard-Mutant | -3/Research Wizard-Mutant | -3/Testing Wizard-Sprinter | -2/Research Wizard-Sprinter | -2/Quarantine Wizard-Sprinter | -2/Section 7 Machinist-Sprinter | -1/Access Machinist-Sprinter | -1/Command Machinist-Sprinter | -1/Access_0 Resources | -11 -10 -10 -9 -9 -8 -7 -7 -7 -7 -7 -7 -6 -6 -6 -6 -6 -5 -5 -5 -5 -5 -5 -5 -5 -4 -4 -4 -4 -4 -3 -3 -2 -2 -2 -1 -1 -1 ----------- Run | Scr Mat Min Mat Sto Mat Fac Was Fac Low Low Zio Pro Fac Low Low Dat Pro Fac Was Fac Ext Cet Arc Hub Fac Was Fac Arm Lab Res Tes Res Qua Sec Acc Com Ac0 Matter Collected 3820 | 200 40 20 223 80 110 351 . 248 20 . 30 30 200 30 10 . 30 210 . 80 30 20 . 48 60 . 130 130 . 300 139 161 90 263 142 280 115 Remotely . | . . . . . . . . . . . . . . . . . . . . . . . . . . . . . . . . . . . . . . Salvage Created 47973 | . 772 70 1771 1478 2057 1902 . 1209 312 714 . 353 1865 628 1001 . 864 3478 . 1072 1389 358 169 2844 1081 548 1850 1022 . 3335 900 4185 1214 2476 2253 2644 2159 Parts 2691 | . 39 12 126 118 107 109 . 71 34 39 . 25 82 39 39 . 44 207 . 88 60 16 5 100 49 16 91 70 . 177 71 226 48 147 117 166 153 Haulers Intercepted 54 | . 2 . 5 4 6 1 . 3 . . . . 4 . . . . . . . 6 . . 1 . . 2 . . 8 . 5 1 1 5 . . Recyclers Shooed 1 | . . . . . 1 . . . . . . . . . . . . . . . . . . . . . . . . . . . . . . . . Parts Field Recycled . | . . . . . . . . . . . . . . . . . . . . . . . . . . . . . . . . . . . . . . Retrieved Matter . | . . . . . . . . . . . . . . . . . . . . . . . . . . . . . . . . . . . . . . Parts Self-Destructed 225 | . . . . . . . . . 44 45 . 27 . 39 25 . 45 . . . . . . . . . . . . . . . . . . . . Prevented 11 | . . . . . . . . . 8 . . 2 . 1 . . . . . . . . . . . . . . . . . . . . . . . Kills | -11 -10 -10 -9 -9 -8 -7 -7 -7 -7 -7 -7 -6 -6 -6 -6 -6 -5 -5 -5 -5 -5 -5 -5 -5 -4 -4 -4 -4 -4 -3 -3 -2 -2 -2 -1 -1 -1 ------- Run | Scr Mat Min Mat Sto Mat Fac Was Fac Low Low Zio Pro Fac Low Low Dat Pro Fac Was Fac Ext Cet Arc Hub Fac Was Fac Arm Lab Res Tes Res Qua Sec Acc Com Ac0 Combat Hostiles Destroyed 791 | . 15 6 36 39 32 43 . 29 12 18 . 9 26 16 20 . 18 69 . 28 16 5 1 28 14 . 32 19 . 44 16 54 17 35 25 44 25 Melee 622 | . . . . . . 2 . 29 12 18 . 9 26 16 20 . 18 69 . 28 16 5 1 28 14 . 32 19 . 44 16 54 17 35 25 44 25 Guns 134 | . 12 4 34 31 26 27 . . . . . . . . . . . . . . . . . . . . . . . . . . . . . . . AOE 28 | . 3 2 1 7 6 9 . . . . . . . . . . . . . . . . . . . . . . . . . . . . . . . Classes Destroyed 24 | . 6 . 5 . 2 1 . . 1 . . . . . 1 . . 1 . . . . . . . . 1 2 . . . 1 1 2 . . . Worker 19 | . 1 . 2 . 2 1 . . . . . . 1 . . . . 1 . . . . . 10 1 . . . . . . . . . . . . Builder 10 | . 1 . 1 . 2 1 . . . . . . . . . . . . . . . . . 5 . . . . . . . . . . . . . Tunneler 3 | . . . 3 . . . . . . . . . . . . . . . . . . . . . . . . . . . . . . . . . . Hauler 54 | . 2 . 5 4 6 1 . 3 . . . . 4 . . . . . . . 6 . . 1 . . 2 . . 8 . 5 1 1 5 . . Recycler 9 | . . . 1 . 4 1 . . . . . . 1 . . . . . . . . . . 1 1 . . . . . . . . . . . . Carrier 2 | . . . . . . . . . . . . . . . . . . . . . . . . . . . . . . . . 1 . 1 . . . Operator 4 | . . . . . 1 . . . . . . . . . . . . . . . . . 1 1 . . . . . . . . . . 1 . . Watcher 72 | . 1 . 4 2 3 5 . 7 . . . . 4 . . . . 7 . 4 1 . . 2 . . 2 1 . 9 2 8 1 4 5 . . Swarmer 162 | . 3 4 8 7 5 6 . 10 5 11 . 4 3 5 5 . 5 11 . . 1 . . 2 . . 6 1 . 10 3 16 5 14 . 12 . Saboteur 2 | . . . . . . . . . . . . . . . . . . . . . . . . . . . . 2 . . . . . . . . . Grunt 293 | . 12 2 18 16 19 23 . 9 5 6 . . 12 6 3 . 7 31 . 16 4 1 . 14 10 . 9 1 . 15 7 12 8 7 15 5 . Brawler 19 | . . . 1 4 . . . 1 . . . . 1 . 1 . 1 3 . . . . . 2 . . 2 3 . . . . . . . . . Duelist 20 | . . . 1 2 2 1 . . . . . . 2 1 1 . 2 2 . 2 . . . 1 . . 1 . . . 1 . . . . 1 . Protector 1 | . . . . . . . . . . . . . . . . . . . . . . . . . . . 1 . . . . . . . . . . Researcher 6 | . . . . . . . . . . . . . . . . . . . . . . . . . . . . . . . . . 1 5 . . . Sentry 125 | . . . 8 10 6 9 . 6 1 1 . 1 6 1 1 . 2 11 . 5 7 . 1 7 4 . 5 4 . 11 . 9 . 5 . 4 . Demolisher 2 | . . . . . . . . . . . . . . . . . . 1 . . . . . 1 . . . . . . . . . . . . . Specialist 6 | . . . . . . . . . . . . . . . . . . . . . . . . . . . . 4 . . . . 2 . . . . Hunter 43 | . . . . . 1 2 . 1 . . . 2 . 2 2 . 1 5 . 2 . . . . . . 1 . . 5 2 6 2 . 4 5 . Programmer 52 | . . . . . . 2 . 2 . . . 1 1 . . . . 5 . 2 . 1 . . . . 6 3 . 2 2 8 . 2 6 9 . Behemoth 16 | . . . . . . . . . 1 . . 1 1 1 . . . . . 1 2 . . 1 . . 1 1 . 1 . 3 . . . 2 . Cetus Guard 3 | . . . . . . . . . . . . . . . . . . . . . . 3 . . . . . . . . . . . . . . . S7 Guard 3 | . . . . . . . . . . . . . . . . . . . . . . . . . . . . . . . . . . 3 . . . M Guard 2 | . . . . . . . . . . . . . . . . . . . . . . . . . . . . . . . . . . . . 2 . Enhanced Grunt 14 | . . . . . . . . . . . . . . . . . . . . . . . . . . . . . . . . . . . . . 14 Enhanced Sentry 2 | . . . . . . . . . . . . . . . . . . . . . . . . . . . . . . . . . . . . . 2 Enhanced Hunter 5 | . . . . . . . . . . . . . . . . . . . . . . . . . . . . . . . . . . . . . 5 Combat Programmer 2 | . . . . . . . . . . . . . . . . . . . . . . . . . . . . . . . . . . . . 2 . Executioner 2 | . . . . . . . . . . . . . . . . . . . . . . . . . . . . . . . . . . 2 . . . Alpha 7 2 | . . . . . . . . . . . . . . . . . . . . . . . . . . . . . . . . . . 2 . . . Protovariant Y 1 | . . . . . . . . . . . . . . . . . . . . . . . . . . . . . . . 1 . . . . . . Thug 3 | . . . . . 1 . . . . . . . . . . . . . . . . . . 2 . . . . . . . . . . . . . Savage 1 | . . . . . . . . . . . . . . . 1 . . . . . . . . . . . . . . . . . . . . . . Butcher 6 | . . . . . . . . . . . . . . . 5 . . . . . 1 . . . . . . . . . . . . . . . . Guerrilla 2 | . . . . . . . . . . . . . . . . . . . . . 1 . . 1 . . . . . . . . . . . . . Mutant 1 | . . . . . . . . . . . . . . . 1 . . . . . . . . . . . . . . . . . . . . . . Best Kill Streak 23 | . 7 3 8 10 7 5 . 6 4 10 . 4 5 4 8 . 7 7 . 3 7 2 2 13 6 . 8 6 . 7 4 14 6 23 13 14 6 Combat Bots Only 14 | . 4 3 7 10 6 5 . 5 4 10 . 4 4 4 8 . 7 7 . 3 5 2 1 6 5 . 7 6 . 5 4 12 5 8 8 14 6 Max Kills in Single Turn 9 | . 2 2 3 4 5 3 . 2 2 2 . 1 1 2 1 . 1 2 . 1 1 1 1 9 1 . 2 1 . 2 1 3 2 3 3 3 2 Gunslinging 1 | . 1 . 1 1 1 . . . . . . . . . . . . . . . . . . . . . . . . . . . . . . . . Exploded 3 | . 2 2 1 2 1 3 . . . . . . . . . . . . . . . . . . . . . . . . . . . . . . . Melee 3 | . . . . . . 1 . 2 2 2 . 1 1 2 1 . 1 2 . 1 1 1 1 2 1 . 2 1 . 2 1 3 2 3 3 3 2 Uniques/NPCs Destroyed 5 | . . . . . . . . . . . . . . . . . . . . . . . . . . . . . . . . . . . . 1 4 MAIN.C Shell (-1/Command) MAIN.C (-1/Command) A8 (-1/Access_0) A6 (-1/Access_0) A5 (-1/Access_0) Architect (-1/Access_0) Combat | -11 -10 -10 -9 -9 -8 -7 -7 -7 -7 -7 -7 -6 -6 -6 -6 -6 -5 -5 -5 -5 -5 -5 -5 -5 -4 -4 -4 -4 -4 -3 -3 -2 -2 -2 -1 -1 -1 -------- Run | Scr Mat Min Mat Sto Mat Fac Was Fac Low Low Zio Pro Fac Low Low Dat Pro Fac Was Fac Ext Cet Arc Hub Fac Was Fac Arm Lab Res Tes Res Qua Sec Acc Com Ac0 Damage Taken 20135 | . 554 125 1159 788 858 1958 . 1044 417 703 . 233 310 361 268 67 228 1658 . 469 161 295 25 536 113 . 1043 378 . 1269 281 1082 286 692 222 1314 1238 Core 16368 | . 465 101 971 623 694 1568 . 839 337 568 . 191 252 297 219 60 190 1323 . 388 126 235 19 426 87 . 847 306 . 1034 227 893 233 567 184 1081 1017 Absorbed by Shields 7847 | . . . . . . . . 43 158 274 . 86 118 131 96 24 86 593 . 321 131 275 26 420 118 . 669 197 . 750 230 261 12 171 212 1273 1172 Redirected to Core 12828 | . 290 76 618 547 595 1295 . 643 267 433 . 133 194 228 175 27 127 1192 . 290 120 210 19 373 79 . 664 231 . 796 184 677 192 454 130 788 781 Core Remaining (%) 90 | 100 . 100 . 100 95 . . . . . . 100 . . . . 91 . . . . . . 79 . . . . 62 . 100 . . 100 . . 64 Volleys Fired 380 | . 43 23 114 52 60 81 . . . . . . . . . . . . . . . . . 7 . . . . . . . . . . . . . Largest 4 | . 2 1 3 4 4 4 . . . . . . . . . . . . . . . . . 1 . . . . . . . . . . . . . Hottest 180 | . 80 40 135 180 180 180 . . . . . . . . . . . . . . . . . 33 . . . . . . . . . . . . . Shots Fired 1028 | . 77 23 193 205 240 283 . . . . . . . . . . . . . . . . . 7 . . . . . . . . . . . . . Gun 1028 | . 77 23 193 205 240 283 . . . . . . . . . . . . . . . . . 7 . . . . . . . . . . . . . Cannon . | . . . . . . . . . . . . . . . . . . . . . . . . . . . . . . . . . . . . . . Launcher . | . . . . . . . . . . . . . . . . . . . . . . . . . . . . . . . . . . . . . . Special . | . . . . . . . . . . . . . . . . . . . . . . . . . . . . . . . . . . . . . . Kinetic 60 | . . . 53 . . . . . . . . . . . . . . . . . . . . 7 . . . . . . . . . . . . . Thermal 1 | . . . 1 . . . . . . . . . . . . . . . . . . . . . . . . . . . . . . . . . . Explosive . | . . . . . . . . . . . . . . . . . . . . . . . . . . . . . . . . . . . . . . Electromagnetic 967 | . 77 23 139 205 240 283 . . . . . . . . . . . . . . . . . . . . . . . . . . . . . . . Robot Hit Streak 43 | . 13 16 43 42 26 38 . . . . . . . . . . . . . . . . . . . . . . . . . . . . . . . Robot Miss Streak 5 | . 3 1 2 5 4 2 . . . . . . . . . . . . . . . . . . . . . . . . . . . . . . . Penetration Max . | . . . . . . . . . . . . . . . . . . . . . . . . . . . . . . . . . . . . . . Secondary Targets 32 | . 2 . 6 9 6 9 . . . . . . . . . . . . . . . . . . . . . . . . . . . . . . . Max Gunslinging Chain 2 | . 1 . 1 2 1 1 . . . . . . . . . . . . . . . . . . . . . . . . . . . . . . . Shots Hit Robots 2579 | . 53 20 156 168 169 251 . 95 26 35 . 25 93 31 57 1 33 180 . 80 39 32 4 59 29 10 93 38 . 157 47 144 35 83 75 129 132 Core Hits 1539 | . 32 8 100 92 110 138 . 41 14 18 . 11 42 18 25 . 25 102 . 45 27 15 3 65 20 5 52 26 . 86 27 84 24 65 45 79 95 Critical Hits 341 | . . . 2 . 3 9 . 12 4 6 . 3 15 3 4 . 5 24 . 19 11 2 . 6 4 2 13 11 . 34 13 36 13 12 15 32 28 Critical Kills 149 | . . . 1 . . 4 . 5 2 4 . 1 7 1 2 . 1 12 . 6 4 . . 1 1 . 6 9 . 15 6 20 10 3 7 11 10 Critical Parts Destroyed 146 | . . . 1 . 3 4 . 7 2 2 . 2 8 2 2 . 3 10 . 11 6 2 . 3 3 . 5 2 . 13 5 15 3 5 7 10 10 Melee Attacks 2671 | . . . . 3 . 14 . 133 36 45 . 39 173 37 70 1 43 245 . 107 55 44 10 85 33 11 147 93 . 246 83 217 66 173 100 188 174 Impact . | . . . . . . . . . . . . . . . . . . . . . . . . . . . . . . . . . . . . . . Slashing 492 | . . . . 3 . 14 . 129 25 34 . 26 117 21 40 1 25 57 . . . . . . . . . . . . . . . . . . . Piercing 2179 | . . . . . . . . 4 11 11 . 13 56 16 30 . 18 188 . 107 55 44 10 85 33 11 147 93 . 246 83 217 66 173 100 188 174 Sneak Attacks 128 | . . . . . . . . 9 2 . . 2 11 1 3 1 . 10 . 1 14 . 1 6 3 . 6 2 . 16 4 10 2 12 9 3 . Combat Hostiles 55 | . . . . . . . . 3 2 . . 2 3 1 2 . . 9 . 1 3 . . 5 1 . 3 2 . 6 4 3 . 1 1 3 . Follow-up Attacks 681 | . . . . . . 1 . 21 5 9 . 12 27 10 18 . 12 57 . 21 11 15 . 14 7 2 39 11 . 67 18 61 17 39 35 71 81 Damage Inflicted 143999 | . 1202 339 2821 2935 3791 5283 . 6584 1768 2329 . 1412 6282 1895 3078 183 1822 10778 . 4626 3477 1747 333 6084 1796 732 5755 2529 . 11375 3197 11100 2667 7837 7010 11443 9789 Guns 11939 | . 724 241 2290 2464 2503 3717 . . . . . . . . . . . . . . . . . . . . . . . . . . . . . . . Cannons . | . . . . . . . . . . . . . . . . . . . . . . . . . . . . . . . . . . . . . . Explosions 6163 | . 478 98 531 471 1288 1111 . . . . . . . . . . . . . . . . . 2186 . . . . . . . . . . . . . Melee 125897 | . . . . . . 455 . 6584 1768 2329 . 1412 6282 1895 3078 183 1822 10778 . 4626 3477 1747 333 3898 1796 732 5755 2529 . 11375 3197 11100 2667 7837 7010 11443 9789 Ramming . | . . . . . . . . . . . . . . . . . . . . . . . . . . . . . . . . . . . . . . Kinetic 345 | . . . 345 . . . . . . . . . . . . . . . . . . . . . . . . . . . . . . . . . . Thermal 3930 | . 478 98 541 471 1231 1111 . . . . . . . . . . . . . . . . . . . . . . . . . . . . . . . Explosive . | . . . . . . . . . . . . . . . . . . . . . . . . . . . . . . . . . . . . . . Electromagnetic 13827 | . 724 241 1935 2464 2560 3717 . . . . . . . . . . . . . . . . . 2186 . . . . . . . . . . . . . Impact . | . . . . . . . . . . . . . . . . . . . . . . . . . . . . . . . . . . . . . . Slashing 24833 | . . . . . . 455 . 6545 1586 1921 . 1041 5250 1441 2326 183 1321 2764 . . . . . . . . . . . . . . . . . . . Piercing 101064 | . . . . . . . . 39 182 408 . 371 1032 454 752 . 501 8014 . 4626 3477 1747 333 3898 1796 732 5755 2529 . 11375 3197 11100 2667 7837 7010 11443 9789 Highest Corruption 8 | . . . . 1 3 5 8 8 . . . . 1 1 . . . 2 . 1 1 1 . 2 . . 1 1 . 4 . 1 . . . . . Average Corruption 2 | . . . . 1 2 4 3 3 . . . . 1 1 . . . 1 . 1 1 1 . 2 . . 1 1 . 2 . 1 . . . . . Corruption Purged 28 | . . . . . . 4 . 10 . . . . 1 1 . . . 3 . . . 1 . . . . 1 1 . 5 . 1 . . . . . Effects 91 | . . . . . 9 32 . 28 . . . . . 1 . . . 8 . . . . . 1 . . 3 3 . 4 . 2 . . . . . Message Errors 21 | . . . . . 1 7 . 5 . . . . . . . . . 3 . . . . . 1 . . . 2 . 2 . . . . . . . Matter Fused 13 | . . . . . 2 5 . 6 . . . . . . . . . . . . . . . . . . . . . . . . . . . . . Heat Flow Errors 13 | . . . . . . 6 . 5 . . . . . . . . . 2 . . . . . . . . . . . . . . . . . . . Energy Discharges 13 | . . . . . 3 4 . 3 . . . . . 1 . . . 1 . . . . . . . . 1 . . . . . . . . . . Data Loss (minor) 13 | . . . . . . 4 . 5 . . . . . . . . . 1 . . . . . . . . 2 . . 1 . . . . . . . Misfires 1 | . . . . . . 1 . . . . . . . . . . . . . . . . . . . . . . . . . . . . . . . Targeting Errors 15 | . . . . . 3 3 . 4 . . . . . . . . . 1 . . . . . . . . . 1 . 1 . 2 . . . . . Weapon Failures 2 | . . . . . . 2 . . . . . . . . . . . . . . . . . . . . . . . . . . . . . . . Overload Shots . | . . . . . . . . . . . . . . . . . . . . . . . . . . . . . . . . . . . . . . Overflow Damage 8099 | . 32 . 31 16 108 80 . 977 267 397 . 88 820 22 181 173 126 634 . 151 74 67 . 380 115 . 232 84 . 776 120 336 231 547 370 450 214 Projectiles . | . . . . . . . . . . . . . . . . . . . . . . . . . . . . . . . . . . . . . . Explosions 460 | . 32 . 31 16 108 25 . . . . . . . . . . . . . . . . . 248 . . . . . . . . . . . . . Melee 7639 | . . . . . . 55 . 977 267 397 . 88 820 22 181 173 126 634 . 151 74 67 . 132 115 . 232 84 . 776 120 336 231 547 370 450 214 Knockbacks . | . . . . . . . . . . . . . . . . . . . . . . . . . . . . . . . . . . . . . . Impact . | . . . . . . . . . . . . . . . . . . . . . . . . . . . . . . . . . . . . . . Kinetic . | . . . . . . . . . . . . . . . . . . . . . . . . . . . . . . . . . . . . . . Secondary . | . . . . . . . . . . . . . . . . . . . . . . . . . . . . . . . . . . . . . . Self-Inflicted Damage 1140 | . 170 . 173 47 168 340 . . . . . . . . . . . . . . . . . 242 . . . . . . . . . . . . . Shots 29 | . 5 . 6 1 4 10 . . . . . . . . . . . . . . . . . 3 . . . . . . . . . . . . . Rammed . | . . . . . . . . . . . . . . . . . . . . . . . . . . . . . . . . . . . . . . Targets Rammed . | . . . . . . . . . . . . . . . . . . . . . . . . . . . . . . . . . . . . . . Kicked . | . . . . . . . . . . . . . . . . . . . . . . . . . . . . . . . . . . . . . . Crushed . | . . . . . . . . . . . . . . . . . . . . . . . . . . . . . . . . . . . . . . Highest Temperature 429 | . 174 93 429 385 344 409 . 262 . . . . . . . . . 243 . . 1 . . 5 . . 4 . . 10 362 199 . 8 . . . Average Temperature 109 | . 51 28 107 123 133 114 . 122 . . . . . . . . . 113 . . 1 . . 2 . . 3 . . 6 139 62 . 8 . . . Received Heat Transfer 3508 | . 105 54 393 288 288 573 . 234 137 48 . 14 62 75 26 8 30 249 . 106 32 23 4 45 25 . 116 43 . 210 34 90 9 30 28 60 69 Effects 22 | . . . 9 3 1 7 . . . . . . . . . . . . . . . . . . . . . . . . 2 . . . . . . Shutdowns 2 | . . . 1 . . . . . . . . . . . . . . . . . . . . . . . . . . . 1 . . . . . . Energy Bleed 4 | . . . 1 . 1 1 . . . . . . . . . . . . . . . . . . . . . . . . 1 . . . . . . Interference 15 | . . . 6 3 . 6 . . . . . . . . . . . . . . . . . . . . . . . . . . . . . . . Damage (minor) 1 | . . . 1 . . . . . . . . . . . . . . . . . . . . . . . . . . . . . . . . . . Siege Activations . | . . . . . . . . . . . . . . . . . . . . . . . . . . . . . . . . . . . . . . Robots Corrupted 13 | . . . 1 1 1 5 . . . . . . . . . . . . . . . . . 5 . . . . . . . . . . . . . Combat Hostiles 7 | . . . 1 1 . 5 . . . . . . . . . . . . . . . . . . . . . . . . . . . . . . . Parts Fried 109 | . 4 . 7 20 19 37 . . . . . . . . . . . . . . 1 . . 20 . . . . . 1 . . . . . . . Impact Corruptions . | . . . . . . . . . . . . . . . . . . . . . . . . . . . . . . . . . . . . . . Robots Melted . | . . . . . . . . . . . . . . . . . . . . . . . . . . . . . . . . . . . . . . Combat Hostiles . | . . . . . . . . . . . . . . . . . . . . . . . . . . . . . . . . . . . . . . Parts Melted 4 | . . . 1 . . 2 . . . . . . . . . . . . . . . . . 1 . . . . . . . . . . . . . Heat Transferred 4178 | . 500 100 775 503 1400 900 . . . . . . . . . . . . . . . . . . . . . . . . . . . . . . . Parts Sabotaged . | . . . . . . . . . . . . . . . . . . . . . . . . . . . . . . . . . . . . . . Parts Stolen . | . . . . . . . . . . . . . . . . . . . . . . . . . . . . . . . . . . . . . . Parts Stripped . | . . . . . . . . . . . . . . . . . . . . . . . . . . . . . . . . . . . . . . Power Chain Reactions 53 | . 6 1 9 7 14 16 . . . . . . . . . . . . . . . . . . . . . . . . . . . . . . . Missiles Intercepted . | . . . . . . . . . . . . . . . . . . . . . . . . . . . . . . . . . . . . . . Alert | -11 -10 -10 -9 -9 -8 -7 -7 -7 -7 -7 -7 -6 -6 -6 -6 -6 -5 -5 -5 -5 -5 -5 -5 -5 -4 -4 -4 -4 -4 -3 -3 -2 -2 -2 -1 -1 -1 ------- Run | Scr Mat Min Mat Sto Mat Fac Was Fac Low Low Zio Pro Fac Low Low Dat Pro Fac Was Fac Ext Cet Arc Hub Fac Was Fac Arm Lab Res Tes Res Qua Sec Acc Com Ac0 Peak Influence 2364 | . 315 413 511 1181 841 1248 451 919 . . . . 739 . . . . 899 314 652 1048 640 412 2209 1841 1100 2364 1234 . 892 629 1600 1533 687 832 504 . Average Influence 550 | . 148 272 304 542 543 747 435 522 . . . . 316 . . . . 564 301 297 518 409 376 853 1555 1100 1465 741 . 356 206 922 715 414 340 254 . Maximum Alert Level 5 | . 1 2 2 4 3 4 2 3 . . . . 3 . . . . 3 1 2 3 2 2 5 5 4 5 4 . 3 2 5 4 2 3 2 . Low Security (%) 17 | 100 74 27 27 25 . 2 . 1 . . . . 28 . . . . 13 . 23 16 26 . 8 . . . . . 33 60 . 18 . 33 19 . Level 1 25 | . 25 52 46 8 32 17 . 24 . . . . 55 . . . . 12 100 60 26 10 38 13 . . . 3 . 21 30 1 3 42 25 26 . Level 2 28 | . . 19 26 27 42 25 100 43 . . . . 6 . . . . 37 . 15 26 62 61 14 . . 9 37 . 33 9 33 13 56 35 54 . Level 3 19 | . . . . 34 25 36 . 29 . . . . 8 . . . . 37 . . 30 . . 41 12 . 10 51 . 11 . 28 50 . 4 . . Level 4 7 | . . . . 3 . 17 . . . . . . . . . . . . . . . . . 14 25 100 45 7 . . . 35 14 . . . . Level 5 1 | . . . . . . . . . . . . . . . . . . . . . . . . 6 55 . 16 . . . . 2 . . . . . High Security . | . . . . . . . . . . . . . . . . . . . . . . . . . 7 . 16 . . . . . . . . . . Max Security . | . . . . . . . . . . . . . . . . . . . . . . . . . . . . . . . . . . . . . . Squads Dispatched 173 | . 5 . 6 11 6 15 . 14 . . . . 6 . 1 . . 19 . 10 2 . . 11 6 . 13 3 . 9 7 9 10 5 2 3 . Investigation 44 | . 4 . 2 3 1 3 . 3 . . . . 1 . . . . 11 . 3 . . . . 1 . . 1 . 2 1 2 3 1 1 1 . Extermination 27 | . . . . . . 2 . 3 . . . . 3 . . . . 3 . 2 . . . 1 . . 1 1 . 2 2 3 . 2 1 1 . Reinforcement 48 | . 1 . 4 3 3 5 . 2 . . . . 1 . . . . . . 2 1 . . 4 1 . 5 1 . 4 3 . 5 2 . 1 . Assault 24 | . . . . 4 1 4 . . . . . . 1 . 1 . . 2 . . 1 . . . 1 . 6 . . . 1 1 1 . . . . Garrison 30 | . . . . 1 1 1 . 6 . . . . . . . . . 3 . 3 . . . 6 3 . 1 . . 1 . 3 1 . . . . Intercept . | . . . . . . . . . . . . . . . . . . . . . . . . . . . . . . . . . . . . . . Construction Impeded 7 | . . . . . . 1 . . . . . . . . . . . . . . 1 . . 2 . . 2 . . . . . 1 . . . . Haulers Reinforced 5 | . . . . . . 1 . . . . . . 1 . . . . . . . . . . . . . 1 . . 2 . . . . . . . Stealth | -11 -10 -10 -9 -9 -8 -7 -7 -7 -7 -7 -7 -6 -6 -6 -6 -6 -5 -5 -5 -5 -5 -5 -5 -5 -4 -4 -4 -4 -4 -3 -3 -2 -2 -2 -1 -1 -1 --------- Run | Scr Mat Min Mat Sto Mat Fac Was Fac Low Low Zio Pro Fac Low Low Dat Pro Fac Was Fac Ext Cet Arc Hub Fac Was Fac Arm Lab Res Tes Res Qua Sec Acc Com Ac0 Distress Signals 57 | . . . 2 1 6 . . 1 . . . . . . . . . 4 . 1 . 2 . 5 1 . 3 2 . 3 . 1 5 3 3 14 . Communications Jammed . | . . . . . . . . . . . . . . . . . . . . . . . . . . . . . . . . . . . . . . Distress Signals . | . . . . . . . . . . . . . . . . . . . . . . . . . . . . . . . . . . . . . . Times Spotted 1181 | . 25 11 54 55 47 78 4 45 16 23 . 10 38 17 21 4 19 88 5 38 22 17 4 48 14 . 58 49 . 67 24 75 31 50 32 51 41 Peak Tracking Total 22 | . 5 3 9 9 6 14 4 5 6 13 . 4 4 4 7 4 7 12 5 4 4 5 3 8 5 . 10 22 . 6 4 8 5 10 8 12 8 Tactical Retreats 35 | . 2 1 1 . 5 3 . 1 . . . . . 1 1 . . . . 1 . . . . . . . 4 . 4 3 1 2 4 1 . . Traps | -11 -10 -10 -9 -9 -8 -7 -7 -7 -7 -7 -7 -6 -6 -6 -6 -6 -5 -5 -5 -5 -5 -5 -5 -5 -4 -4 -4 -4 -4 -3 -3 -2 -2 -2 -1 -1 -1 ------- Run | Scr Mat Min Mat Sto Mat Fac Was Fac Low Low Zio Pro Fac Low Low Dat Pro Fac Was Fac Ext Cet Arc Hub Fac Was Fac Arm Lab Res Tes Res Qua Sec Acc Com Ac0 Traps Triggered 19 | . 3 . . . 3 1 . . . . . . . . . . . 1 . . . . . 1 1 . 2 . . 3 1 2 . 1 . . . Indirectly 1 | . . . . . . . . . . . . . . . . . . . . . . . . 1 . . . . . . . . . . . . . Trap Hack Attempts . | . . . . . . . . . . . . . . . . . . . . . . . . . . . . . . . . . . . . . . Triggered . | . . . . . . . . . . . . . . . . . . . . . . . . . . . . . . . . . . . . . . Disarmed . | . . . . . . . . . . . . . . . . . . . . . . . . . . . . . . . . . . . . . . Reprogrammed 6 | . . . . . . . . . . . . . . . . . . . . . . . . . . . . 6 . . . . . . . . . Reused . | . . . . . . . . . . . . . . . . . . . . . . . . . . . . . . . . . . . . . . Traps Extracted . | . . . . . . . . . . . . . . . . . . . . . . . . . . . . . . . . . . . . . . Installed . | . . . . . . . . . . . . . . . . . . . . . . . . . . . . . . . . . . . . . . Triggered 11 | . . . . . . 1 . . 4 . . 1 . 1 . . . . . . . . . . . . . . . 1 . . . . . 3 . Machines | -11 -10 -10 -9 -9 -8 -7 -7 -7 -7 -7 -7 -6 -6 -6 -6 -6 -5 -5 -5 -5 -5 -5 -5 -5 -4 -4 -4 -4 -4 -3 -3 -2 -2 -2 -1 -1 -1 ---------- Run | Scr Mat Min Mat Sto Mat Fac Was Fac Low Low Zio Pro Fac Low Low Dat Pro Fac Was Fac Ext Cet Arc Hub Fac Was Fac Arm Lab Res Tes Res Qua Sec Acc Com Ac0 Machines Disabled 104 | . 1 1 . 7 3 2 . . 2 1 . . . . . . . . . . 3 2 1 30 12 . 13 4 . . 5 . 4 7 . 2 4 Max in Single Turn 16 | . 1 . . 2 2 1 . . 1 1 . . . . . . . . . . . . . 16 . . . 1 . . 1 . 1 1 . 1 1 Garrison Access 10 | . . . . 1 1 1 . . . . . . 1 . . . . 1 . . . . . 2 . . 1 . . . . . 1 1 . . . Network Hub 3 | . . . . . . . . . . . . . . . . . . . . . . . . 3 . . . . . . . . . . . . . Machines Sabotaged . | . . . . . . . . . . . . . . . . . . . . . . . . . . . . . . . . . . . . . . Garrisons Compromised . | . . . . . . . . . . . . . . . . . . . . . . . . . . . . . . . . . . . . . . Overloaded Fab Kills . | . . . . . . . . . . . . . . . . . . . . . . . . . . . . . . . . . . . . . . Fab Network Shutdowns 8 | . . . . . . 1 . . . . . . 1 . . . . . . 1 . . . . . . 1 1 . 1 1 . . . 1 . . Hacking | -11 -10 -10 -9 -9 -8 -7 -7 -7 -7 -7 -7 -6 -6 -6 -6 -6 -5 -5 -5 -5 -5 -5 -5 -5 -4 -4 -4 -4 -4 -3 -3 -2 -2 -2 -1 -1 -1 --------- Run | Scr Mat Min Mat Sto Mat Fac Was Fac Low Low Zio Pro Fac Low Low Dat Pro Fac Was Fac Ext Cet Arc Hub Fac Was Fac Arm Lab Res Tes Res Qua Sec Acc Com Ac0 Machines Accessed 306 | . 6 1 8 11 8 18 . 22 2 3 1 . 28 . . 4 . 25 . 15 16 2 . 12 4 . 9 10 . 20 12 20 11 20 10 8 . Terminals 233 | . 6 1 8 9 7 13 . 15 1 1 . . 19 . . . . 16 . 11 16 2 . 10 3 . 6 8 . 13 10 13 10 19 9 7 . Fabricators 29 | . . . . . . 3 . 3 . . . . 4 . . . . 5 . 2 . . . . . . 2 2 . 2 1 4 . . 1 . . Repair Stations . | . . . . . . . . . . . . . . . . . . . . . . . . . . . . . . . . . . . . . . Recycling Units 2 | . . . . 1 . . . . . . . . . . . . . . . . . . . . . . . . . . . . . . . 1 . Scanalyzers 3 | . . . . . . 1 . . . . . . 1 . . . . . . . . . . . . . . . . 1 . . . . . . . Garrison Access 31 | . . . . 1 1 1 . 4 . . . . 4 . . . . 4 . 2 . . . 2 1 . 1 . . 4 1 3 1 1 . . . Total Hacks 1957 | . 39 6 48 84 41 76 . 133 13 20 2 . 135 . . 25 . 126 . 85 79 19 . 67 31 . 66 103 . 137 84 114 112 146 103 63 . Successful 1260 | . 18 4 29 53 27 45 . 72 12 17 2 . 93 . . 25 . 78 . 54 44 15 . 43 20 . 37 55 . 82 58 72 83 104 71 47 . Failed 688 | . 20 2 19 30 14 31 . 60 1 3 . . 42 . . . . 47 . 30 35 4 . 24 11 . 29 48 . 54 26 42 28 41 32 15 . Catastrophic 128 | . 1 . 2 2 3 6 . 7 1 . . . 7 . . . . 9 . 5 10 . . 1 2 . 4 11 . 19 8 7 5 6 8 4 . Database Lockouts 13 | . 1 . . 3 . . . 1 . . . . . . . . . 1 . 2 . . . . . . . . . 1 . . 1 2 . 1 . Manual 1247 | . 27 6 34 76 32 33 . 77 3 5 4 . 86 . . . . 76 . 60 61 12 . 53 21 . 31 67 . 98 55 79 78 70 54 49 . Terminals 1605 | . 39 6 48 73 39 59 . 97 12 13 . . 95 . . . . 85 . 61 79 19 . 55 23 . 58 91 . 110 65 81 102 139 97 59 . Fabricators 180 | . . . . . . 12 . 17 . . . . 27 . . . . 28 . 16 . . . . . . 7 12 . 19 16 20 . . 6 . . Repair Stations . | . . . . . . . . . . . . . . . . . . . . . . . . . . . . . . . . . . . . . . Recycling Units 8 | . . . . 4 . . . . . . . . . . . . . . . . . . . . . . . . . . . . . . . 4 . Scanalyzers 6 | . . . . . . 2 . . . . . . 2 . . . . . . . . . . . . . . . . 2 . . . . . . . Garrison Access 123 | . . . . 7 2 3 . 19 . . . . 11 . . . . 13 . 8 . . . 12 8 . 1 . . 6 3 13 10 7 . . . Terminal Hacks 705 | . 13 4 19 34 15 22 . 34 11 16 2 . 42 . . 25 . 36 . 29 32 10 . 17 8 . 17 28 . 44 25 27 60 59 49 27 . Record 81 | . . . . . 1 . . . 9 14 . . . . . 11 . . . . . 5 . . . . . . . 2 . 1 11 12 12 3 . Part Schematic 82 | . . . . . . 3 . 7 . . 2 . 8 . . 7 . 7 . 3 9 . . 3 . . 1 1 . 7 7 3 7 3 3 1 . Robot Schematic 24 | . . . . . . 1 . . . . . . . . . 4 . 4 . . 1 . . . . . 1 4 . . . 2 2 3 2 . . Robot Analysis 28 | . . . . . 1 2 . 3 . . . . 1 . . . . 2 . . . . . . 2 . 1 1 . 6 1 2 1 1 2 2 . Prototype ID Bank 77 | . 5 4 7 12 . 1 . 2 . . . . 9 . . 3 . 3 . 1 . . . . . . 1 1 . 5 1 . 13 2 1 6 . Open Door 24 | . . . . 3 . . . . 1 1 . . . . . . . . . . 8 1 . . . . . . . . 1 1 . 4 3 1 . Level Access Points 21 | . 2 . 1 1 1 . . 1 . . . . . . . . . 1 . 1 1 . . 1 2 . . 1 . 1 1 1 1 1 1 2 . Branch Access Points 25 | . 1 . 1 . 1 1 . 1 1 1 . . 1 . . . . 1 . 1 1 . . 1 1 . 1 1 . 2 2 1 2 1 1 1 . Machine Index 10 | . . . . . . 1 . 1 . . . . . . . . . . . . 1 . . 1 . . . 1 . . . 1 1 1 1 1 . Terminal Index 16 | . 1 . 1 1 1 1 . 2 . . . . 1 . . . . . . 1 1 . . 1 1 . 1 . . . 2 1 . . . . . Fabricator Index 4 | . . . . . . . . . . . . . 1 . . . . . . 1 . . . . 1 . . . . 1 . . . . . . . Repair Station Index 1 | . . . . . . . . . . . . . . . . . . . . . . . . . . . 1 . . . . . . . . . . Recycling Unit Index 1 | . . . . . . . . . . . . . 1 . . . . . . . . . . . . . . . . . . . . . . . . Scanalyzer Index 2 | . . . . . . . . . . . . . 1 . . . . . . 1 . . . . . . . . . . . . . . . . . Garrison Index 5 | . . . . . . . . . . . . . 1 . . . . . . 1 . . . . . . . . . 2 1 . . . . . . Alert Level 89 | . 1 . 3 2 1 1 . 6 . . . . 9 . . . . 2 . 6 4 2 . 4 . . 2 5 . 6 3 4 6 8 10 4 . Unreport Threat 123 | . . . 6 5 5 4 . 8 . . . . 4 . . . . 9 . 7 5 2 . 5 1 . 4 8 . 8 4 9 9 8 9 3 . Locate Traps 2 | . . . . . . . . . . . . . . . . . . 1 . . . . . . . . . 1 . . . . . . . . . Reprogram Traps 1 | . . . . . . . . . . . . . . . . . . . . . . . . . . . . 1 . . . . . . . . . Dispatch Records 3 | . . . . 1 1 . . . . . . . . . . . . . . . . . . . . . . 1 . . . . . . . . . Maintenance Status 1 | . . . . . . . . . . . . . . . . . . . . . . . . . . . 1 . . . . . . . . . . Security Status 5 | . . . . 2 . . . . . . . . . . . . . 1 . . . . . . . . . 1 . . . . . . . 1 . Surveillance Status 1 | . . . . . . . . . . . . . . . . . . . . . . . . . . . . 1 . . . . . . . . . Patrol Status 2 | . . . . 1 . . . . . . . . . . . . . . . . . . . . . . 1 . . . . . . . . . . Transport Status 2 | . . . . 1 . . . . . . . . . . . . . . . . . . . . . . . . . . . . . 1 . . . Investigation Status 4 | . . . . . . . . . . . . . . . . . . . . . . . . . . . . . . . . . 1 3 . . . Extermination Status 3 | . . . . . . . . . . . . . . . . . . . . . . . . . . . . . . . . . 1 2 . . . Reinforcement Status 1 | . . . . . . . . . . . . . . . . . . . . . . . . . . . . . . . . . 1 . . . . Assault Status 2 | . . . . . . . . . . . . . . . . . . . . . . . . . . . . . . . . . 1 1 . . . Intercept Status 1 | . . . . . . . . . . . . . . . . . . . . . . . . . . . . . . . . . . 1 . . . Recall Investigation 11 | . 1 . . 2 . . . . . . . . . . . . . 2 . 2 . . . . . . . . . . 1 . 1 . 1 1 . Recall Extermination 4 | . . . . . . . . . . . . . 1 . . . . 1 . 1 . . . . . . . . . . . . . 1 . . . Recall Reinforcements 8 | . 1 . . . . 2 . . . . . . . . . . . . . . . . . . . . . . . 1 . . 2 2 . . . Recall Assault 2 | . . . . . . 1 . . . . . . . . . . . . . . 1 . . . . . . . . . . . . . . . . Hauler Manifests 16 | . 1 . . 1 1 2 . 1 . . . . 2 . . . . 1 . 2 . . . 1 . . 1 . . 1 . 1 . 1 . . . Registered Components 9 | . . . . 1 1 1 . 1 . . . . 1 . . . . . . 1 . . . . . . . . . 1 . . . 1 1 . . Registered Prototypes 9 | . . . . 1 . 1 . 1 . . . . 1 . . . . 1 . . . . . . . . 1 . . 1 . . . 1 1 . . Zone Layout 3 | . . . . . 1 . . . . . . . . . . . . . . . . . . . . . . . . . . . . 1 1 . . Protovariant Controls 1 | . . . . . . . . . . . . . . . . . . . . . . . . . . . . . . . 1 . . . . . . Disengage Seal 1 | . . . . . . . . . . . . . . . . . . . . . . . . . . . . . . . . . . . . 1 . Fabricator Hacks 114 | . . . . . . 8 . 11 . . . . 19 . . . . 16 . 10 . . . . . . 5 9 . 11 11 10 . . 4 . . Load Schematic 56 | . . . . . . 3 . 5 . . . . 9 . . . . 8 . 6 . . . . . . 2 4 . 6 6 5 . . 2 . . Build 58 | . . . . . . 5 . 6 . . . . 10 . . . . 8 . 4 . . . . . . 3 5 . 5 5 5 . . 2 . . Repair Station Hacks . | . . . . . . . . . . . . . . . . . . . . . . . . . . . . . . . . . . . . . . Recycling Unit Hacks 2 | . . . . 1 . . . . . . . . . . . . . . . . . . . . . . . . . . . . . . . 1 . Report Inventory 2 | . . . . 1 . . . . . . . . . . . . . . . . . . . . . . . . . . . . . . . 1 . Scanalyzer 6 | . . . . . . 2 . . . . . . 2 . . . . . . . . . . . . . . . . 2 . . . . . . . Insert Component 3 | . . . . . . 1 . . . . . . 1 . . . . . . . . . . . . . . . . 1 . . . . . . . Analyze 3 | . . . . . . 1 . . . . . . 1 . . . . . . . . . . . . . . . . 1 . . . . . . . Garrison Access Hacks 6 | . . . . 1 . 1 . . . . . . . . . . . 1 . . . . . 2 . . . . . . . . . 1 . . . Seal Access 6 | . . . . 1 . 1 . . . . . . . . . . . 1 . . . . . 2 . . . . . . . . . 1 . . . Unauthorized Hacks 962 | . 12 . 23 40 24 32 . 69 2 2 . . 67 . . . . 57 . 37 24 12 . 55 28 . 35 41 . 55 44 78 50 93 40 42 . Terminals 312 | . 5 . 10 12 10 9 . 12 1 1 . . 19 . . . . 12 . 9 12 5 . 20 8 . 12 16 . 15 16 19 16 41 16 16 . Track 122 | . 2 . 5 5 4 3 . 5 1 1 . . 10 . . . . 3 . 5 6 2 . 6 3 . 4 7 . 6 6 7 7 15 5 4 . Assimilate 41 | . . . 1 1 1 2 . 2 . . . . 5 . . . . 4 . 1 . . . 6 . . 1 . . . 3 7 1 4 1 1 . Botnet 85 | . 3 . 3 4 3 3 . 3 . . . . 3 . . . . 3 . 3 3 2 . 3 3 . 3 5 . 5 4 3 4 10 6 6 . Detonate 1 | . . . . . . . . . . . . . . . . . . . . . . . . . . . . . . . . . . 1 . . . Disrupt 38 | . . . . 1 1 1 . . . . . . . . . . . 1 . . 2 . . 3 1 . 1 3 . 3 2 1 3 9 2 4 . Operators 25 | . . . 1 1 1 . . 2 . . . . 1 . . . . 1 . . 1 1 . 2 1 . 3 1 . 1 1 1 1 2 2 1 . Fabricators 36 | . . . . . . 2 . 3 . . . . 5 . . . . 5 . 3 . . . . . . 2 2 . 4 3 5 . . 2 . . Report 10 | . . . . . . . . 1 . . . . 1 . . . . 1 . 1 . . . . . . . 1 . 1 1 2 . . 1 . . Prioritize 11 | . . . . . . 1 . 1 . . . . 1 . . . . 1 . 1 . . . . . . 1 1 . 1 1 1 . . 1 . . Siphon 10 | . . . . . . . . 1 . . . . 2 . . . . 2 . 1 . . . . . . 1 . . 1 1 1 . . . . . Haulers 4 | . . . . . . . . . . . . . 1 . . . . 1 . . . . . . . . . . . 1 . 1 . . . . . Download 1 | . . . . . . 1 . . . . . . . . . . . . . . . . . . . . . . . . . . . . . . . Repair Stations . | . . . . . . . . . . . . . . . . . . . . . . . . . . . . . . . . . . . . . . Recycling Units 5 | . . . . 2 . . . . . . . . . . . . . . . . . . . . . . . . . . . . . . . 3 . Monitor 1 | . . . . . . . . . . . . . . . . . . . . . . . . . . . . . . . . . . . . 1 . Reject 2 | . . . . 1 . . . . . . . . . . . . . . . . . . . . . . . . . . . . . . . 1 . Mask 2 | . . . . 1 . . . . . . . . . . . . . . . . . . . . . . . . . . . . . . . 1 . Scanalyzers . | . . . . . . . . . . . . . . . . . . . . . . . . . . . . . . . . . . . . . . Garrison Access 73 | . . . . 3 2 1 . 12 . . . . 6 . . . . 8 . 3 . . . 4 3 . 1 . . 6 3 11 7 3 . . . Broadcast 3 | . . . . . . . . . . . . . . . . . . . . . . . . . . . . . . . 1 1 1 . . . . Decoy 2 | . . . . . . . . . . . . . . . . . . . . . . . . . . . . . . . . 1 1 . . . . Redirect 2 | . . . . . . . . . . . . . . . . . . . . . . . . . . . . . . . . 1 1 . . . . Reprogram 51 | . . . . 3 1 . . 11 . . . . 4 . . . . 7 . 3 . . . 3 2 . 1 . . 5 1 6 2 2 . . . Intercept 2 | . . . . . . . . . . . . . . . . . . . . . . . . . . . . . . . . 1 1 . . . . Watchers 13 | . . . . . 1 1 . 1 . . . . 2 . . . . 1 . . . . . 1 1 . . . . 1 1 1 1 1 . . . Data Cores Recovered 2 | . . . . . . . . . . . . . . . . . . . . . . . . . . . . . . . . 1 . . 1 . . Used 1 | . . . . . . . . . . . . . . . . . . . . . . . . . . . . . . . . . . . 1 . . Hacking Detections 223 | . 6 1 8 10 8 17 . 20 1 1 . . 21 . . . . 23 . 11 12 1 . 8 4 . 6 6 . 9 11 12 9 7 5 6 . Full Trace Events 30 | . 1 1 2 4 1 1 . 1 1 . . . 1 . . . . 10 . 2 . . . . . . . 1 . 1 1 1 . . 1 . . Feedback Events 8 | . . . . 1 . . . . . . . . . . . . . 4 . 1 . . . . . . . . . . . 1 . . 1 . . Corruption 4 | . . . . 1 . . . . . . . . . . . . . 2 . . . . . . . . . . . . . 1 . . . . . Hackware Fried 4 | . . . . . . . . . . . . . . . . . . 2 . 1 . . . . . . . . . . . . . . 1 . . Feedback Blocked . | . . . . . . . . . . . . . . . . . . . . . . . . . . . . . . . . . . . . . . Robot Schematics Acquired 24 | . . . . . . 1 . . . . . . . . . 4 . 4 . . 1 . . . . . 1 4 . . . 2 2 3 2 . . Robots Built 5 | . . . . . . . . . . . . . . . . . . 5 . . . . . . . . . . . . . . . . . . . Matter 504 | . . . . . . . . . . . . . . . . . . 504 . . . . . . . . . . . . . . . . . . . Time 134 | . . . . . . . . . . . . . . . . . . 134 . . . . . . . . . . . . . . . . . . . Total Robot Build Rating 20 | . . . . . . . . . . . . . . . . . . 20 . . . . . . . . . . . . . . . . . . . Part Schematics Acquired 79 | . . . . . . 5 . 6 . . 2 . 7 . . 7 . 7 . 2 8 . . 3 . . 1 1 . 7 6 3 7 3 3 1 . Parts Built 52 | . . . . . . 6 . 6 . . . . 8 . . . . 4 . 5 . . . . . . 1 5 . 5 5 4 . . 3 . . Matter 11233 | . . . . . . 906 . 880 . . . . 1121 . . . . 965 . 1159 . . . . . . 256 1309 . 1357 1412 1349 . . 519 . . Time 2243 | . . . . . . 173 . 262 . . . . 264 . . . . 229 . 299 . . . . . . 64 202 . 234 167 226 . . 123 . . Total Part Build Rating 333 | . . . . . . 28 . 28 . . . . 45 . . . . 28 . 36 . . . . . . 8 37 . 44 39 29 . . 11 . . Parts Repaired . | . . . . . . . . . . . . . . . . . . . . . . . . . . . . . . . . . . . . . . Time . | . . . . . . . . . . . . . . . . . . . . . . . . . . . . . . . . . . . . . . Parts Recycled . | . . . . . . . . . . . . . . . . . . . . . . . . . . . . . . . . . . . . . . Recycled Matter . | . . . . . . . . . . . . . . . . . . . . . . . . . . . . . . . . . . . . . . Retrieved Matter . | . . . . . . . . . . . . . . . . . . . . . . . . . . . . . . . . . . . . . . Retrieved Components . | . . . . . . . . . . . . . . . . . . . . . . . . . . . . . . . . . . . . . . Parts Scanalyzed 3 | . . . . . . 1 . . . . . . 1 . . . . . . . . . . . . . . . . 1 . . . . . . . Part Schematics Acquired 3 | . . . . . . 1 . . . . . . 1 . . . . . . . . . . . . . . . . 1 . . . . . . . Parts Damaged . | . . . . . . . . . . . . . . . . . . . . . . . . . . . . . . . . . . . . . . Bothacking | -11 -10 -10 -9 -9 -8 -7 -7 -7 -7 -7 -7 -6 -6 -6 -6 -6 -5 -5 -5 -5 -5 -5 -5 -5 -4 -4 -4 -4 -4 -3 -3 -2 -2 -2 -1 -1 -1 ------------ Run | Scr Mat Min Mat Sto Mat Fac Was Fac Low Low Zio Pro Fac Low Low Dat Pro Fac Was Fac Ext Cet Arc Hub Fac Was Fac Arm Lab Res Tes Res Qua Sec Acc Com Ac0 Used RIF Installer . | . . . . . . . . . . . . . . . . . . . . . . . . . . . . . . . . . . . . . . Robots Hacked . | . . . . . . . . . . . . . . . . . . . . . . . . . . . . . . . . . . . . . . Non-combat . | . . . . . . . . . . . . . . . . . . . . . . . . . . . . . . . . . . . . . . Combat . | . . . . . . . . . . . . . . . . . . . . . . . . . . . . . . . . . . . . . . Robot Hacks Applied . | . . . . . . . . . . . . . . . . . . . . . . . . . . . . . . . . . . . . . . Relay Couplers Released 2 | . . . . . 1 . . . . . . . 1 . . . . . . . . . . . . . . . . . . . . . . . . Machine Destruction 2 | . . . . . 1 . . . . . . . 1 . . . . . . . . . . . . . . . . . . . . . . . . Robots Rewired 9 | . . . . . . . . . . . . . . . 1 . 2 . . . 5 . . . 1 . . . . . . . . . . . . Allies Hacked 18 | . . . . . . . . 1 1 . . . . . . . . . . . . 1 . 1 . . . . . 2 3 2 4 1 1 1 . Hacks Repelled 2 | . . . . . . . . . . . . . . . . . . . . . . . . . . . . . . . . . . . 1 1 . Allies | -11 -10 -10 -9 -9 -8 -7 -7 -7 -7 -7 -7 -6 -6 -6 -6 -6 -5 -5 -5 -5 -5 -5 -5 -5 -4 -4 -4 -4 -4 -3 -3 -2 -2 -2 -1 -1 -1 -------- Run | Scr Mat Min Mat Sto Mat Fac Was Fac Low Low Zio Pro Fac Low Low Dat Pro Fac Was Fac Ext Cet Arc Hub Fac Was Fac Arm Lab Res Tes Res Qua Sec Acc Com Ac0 Total Allies 199 | . . 5 1 8 1 2 . 18 1 . 3 . 6 . 1 . 2 23 . 10 17 5 . 13 4 20 1 . . 11 8 16 11 10 1 1 . Largest Group 23 | . . 5 5 8 8 3 . 12 10 8 11 9 8 1 1 1 2 10 5 5 22 23 20 22 8 20 20 . . 6 7 12 18 7 3 2 . Highest-Rated Group 1111 | . . 80 80 112 112 59 . 230 184 130 200 167 150 40 20 20 58 236 162 142 794 1111 938 879 455 776 776 . . 248 368 676 1007 406 80 88 . Highest-Rated Ally 156 | . . 31 26 31 31 26 . 38 38 21 25 25 41 40 20 20 29 41 41 29 156 156 134 94 94 50 50 . . 90 90 90 90 69 44 44 . Total Orders 154 | . . . 11 13 4 17 . 4 . . . . 12 . . . . 22 . 4 7 . . 15 . . . . . . 7 18 4 5 3 8 . STAY 13 | . . . 4 . . 1 . . . . . . 2 . . . . 3 . . . . . . . . . . . . . 1 1 . . 1 . GOTO 74 | . . . 1 6 2 8 . 2 . . . . 5 . . . . 9 . 2 5 . . 10 . . . . . . 3 10 1 3 2 5 . FOLLOW 67 | . . . 6 7 2 8 . 2 . . . . 5 . . . . 10 . 2 2 . . 5 . . . . . . 4 7 2 2 1 2 . Ally Attacks 1146 | . . 15 22 38 46 . . 16 25 34 . 21 35 1 . . 6 85 23 38 59 102 30 132 11 . 150 . . 70 28 23 107 29 . . . Total Damage 29122 | . . 210 259 645 339 . . 606 600 439 . 380 743 44 . . 76 1400 449 611 1221 2405 550 2429 1432 . 5629 . . 1649 1079 696 3962 1269 . . . Kills 186 | . . 4 5 10 3 . . 8 6 4 . 2 11 . . . 1 8 1 3 14 14 3 14 5 . 24 . . 7 8 4 25 2 . . . Allies Corrupted 11 | . . . . . . . . . . . . . . . . . . . . . . . . 7 . . . . . . . . . 3 . 1 . Allies Melted 2 | . . . . . . . . . . . . . . . . . . . . . . . . . . . 1 . . . . . . 1 . . . Intel | -11 -10 -10 -9 -9 -8 -7 -7 -7 -7 -7 -7 -6 -6 -6 -6 -6 -5 -5 -5 -5 -5 -5 -5 -5 -4 -4 -4 -4 -4 -3 -3 -2 -2 -2 -1 -1 -1 ------- Run | Scr Mat Min Mat Sto Mat Fac Was Fac Low Low Zio Pro Fac Low Low Dat Pro Fac Was Fac Ext Cet Arc Hub Fac Was Fac Arm Lab Res Tes Res Qua Sec Acc Com Ac0 Robot Analysis Total 28 | . . . . . 1 2 . 3 . . . . 1 . . . . 2 . . . . . . 2 . 1 1 . 6 1 2 1 1 2 2 . Derelict Logs Recovered 17 | . . 2 . . . . . . 2 1 1 3 . 3 2 . 3 . . . . . . . . . . . . . . . . . . . . Drone Launches 12 | . . . . . . . . . . . . . . . . . . . . . 12 . . . . . . . . . . . . . . . . Drone Recoveries . | . . . . . . . . . . . . . . . . . . . . . . . . . . . . . . . . . . . . . . Exploration | -11 -10 -10 -9 -9 -8 -7 -7 -7 -7 -7 -7 -6 -6 -6 -6 -6 -5 -5 -5 -5 -5 -5 -5 -5 -4 -4 -4 -4 -4 -3 -3 -2 -2 -2 -1 -1 -1 ------------- Run | Scr Mat Min Mat Sto Mat Fac Was Fac Low Low Zio Pro Fac Low Low Dat Pro Fac Was Fac Ext Cet Arc Hub Fac Was Fac Arm Lab Res Tes Res Qua Sec Acc Com Ac0 Turns Passed 27268 | 15 587 416 931 702 731 2186 22 1752 683 463 584 503 2021 774 459 33 537 2116 70 1139 591 536 84 571 306 125 881 835 86 1488 849 1200 416 871 402 937 366 Spaces Moved 40768 | 30 737 682 1150 940 1119 2755 68 3100 1165 854 827 879 2960 1032 883 99 938 3107 143 1301 915 568 119 1145 615 229 1190 882 10 2099 1023 1884 880 1734 724 1395 587 Core 275 | 30 243 . . . . . . . . . . . . . . . . . . . 1 . . . . . . . . . . . . . . 1 . Treads . | . . . . . . . . . . . . . . . . . . . . . . . . . . . . . . . . . . . . . . Legs . | . . . . . . . . . . . . . . . . . . . . . . . . . . . . . . . . . . . . . . Wheels . | . . . . . . . . . . . . . . . . . . . . . . . . . . . . . . . . . . . . . . Hover . | . . . . . . . . . . . . . . . . . . . . . . . . . . . . . . . . . . . . . . Flight 40493 | . 494 682 1150 940 1119 2755 68 3100 1165 854 827 879 2960 1032 883 99 938 3107 143 1301 914 568 119 1145 615 229 1190 882 10 2099 1023 1884 880 1734 724 1394 587 Fastest Speed 15 | 50 40 37 37 32 32 29 29 29 32 32 32 32 26 32 32 26 32 26 26 26 26 32 32 26 32 32 26 26 37 30 32 21 21 21 21 24 15 Average Speed 31 | 50 43 38 37 34 32 31 29 31 32 32 32 32 31 32 32 31 32 31 30 31 31 32 32 31 32 32 31 34 37 35 33 28 26 26 25 24 23 Slowest Speed 100 | 50 100 40 37 37 32 32 32 32 32 32 32 32 32 32 32 32 35 32 32 32 100 32 32 32 32 32 32 37 37 37 34 85 27 27 82 100 24 Overloaded Moves 512 | . . . . . . 14 53 34 . . . . 4 . . 14 . 49 30 28 27 . . 65 . . 40 22 . 4 . 65 35 4 7 . 17 Propulsion Burnouts . | . . . . . . . . . . . . . . . . . . . . . . . . . . . . . . . . . . . . . . Robots Hopped 268 | . 12 6 23 18 19 24 . 30 . . . . 8 . . . . 8 . 12 1 . . 27 4 . 2 1 . 32 3 19 4 11 2 2 . Cave-ins Triggered 4 | . . . . . . . . . . . . . . . . . . . . . . 1 . . . . . . . . . . . 1 . 2 . Teleports 4 | . . . . . . . . . . . . . . . . . . . . . . . . . . . . . . . . . 2 . . 1 1 Exploration Rate (%) 70 | 4 97 98 92 87 80 67 72 73 98 92 83 97 67 92 94 69 98 68 83 26 85 94 89 91 22 89 39 58 5 63 90 40 88 78 22 42 36 Regions Visited 37 Branch Regions 21 Pre-discovered Areas 5 | . . 1 . 1 . . . . 1 . . . . . 1 1 . . . . . . . . . . . . . . . . . . . . . Known Exits Taken 22 | . 1 1 1 1 1 . . 1 1 1 . 1 1 1 . . 1 . . 1 1 . . 1 . . 1 . 1 1 1 1 . 1 1 . . Unknown Exits Taken 9 | 1 . . . . . . . . . . 1 . . . 1 1 . . . . . 1 1 . . . . 1 . . . . 1 . . 1 . Scrap Searched 29 | . . 2 . . . . . . 3 4 3 3 . 7 4 . 3 . . . . . . . . . . . . . . . . . . . . Spaces Dug 281 | . . . . . . 3 . 17 2 1 . 5 42 . . . . 24 . 8 4 6 4 7 . . 16 23 . 28 14 19 7 23 6 19 3 Terrain Destroyed 991 | . 11 2 30 22 66 102 . 17 2 1 . 5 42 . . . . 24 . 8 4 6 4 487 . . 16 23 . 28 14 19 7 23 6 19 3 Melee 281 | . . . . . . 3 . 17 2 1 . 5 42 . . . . 24 . 8 4 6 4 7 . . 16 23 . 28 14 19 7 23 6 19 3 Projectile . | . . . . . . . . . . . . . . . . . . . . . . . . . . . . . . . . . . . . . . AOE 710 | . 11 2 30 22 66 99 . . . . . . . . . . . . . . . . . 480 . . . . . . . . . . . . . Actions | -11 -10 -10 -9 -9 -8 -7 -7 -7 -7 -7 -7 -6 -6 -6 -6 -6 -5 -5 -5 -5 -5 -5 -5 -5 -4 -4 -4 -4 -4 -3 -3 -2 -2 -2 -1 -1 -1 --------- Run | Scr Mat Min Mat Sto Mat Fac Was Fac Low Low Zio Pro Fac Low Low Dat Pro Fac Was Fac Ext Cet Arc Hub Fac Was Fac Arm Lab Res Tes Res Qua Sec Acc Com Ac0 Total 52165 | 29 911 808 1459 1163 1324 3820 69 3632 1438 996 1145 1061 3852 1440 995 99 1136 4030 168 1936 1173 891 155 1257 701 275 1598 1340 91 2602 1451 2447 1029 2055 906 1925 758 Wait 7948 | . 128 91 140 134 99 825 2 376 215 73 314 142 720 362 50 . 148 643 26 546 163 284 23 50 38 25 238 369 82 254 315 355 86 177 115 325 15 Move 40230 | 29 714 670 1105 904 1084 2708 67 3041 1164 853 826 878 2945 1031 882 98 937 3091 142 1276 912 567 118 1098 608 228 1185 879 9 2037 1016 1848 872 1715 719 1388 586 Hop 232 | . 10 5 21 17 15 23 . 28 . . . . 6 . . . . 8 . 12 1 . . 19 3 . 2 1 . 29 3 16 3 6 2 2 . Pick Up 63 | . . . 1 1 4 10 . 4 4 2 . 1 8 . . . 1 3 . 1 . . . . 2 1 . . . 6 . 2 2 1 1 2 6 Fast Attach 226 | . 4 1 12 4 7 21 . 12 2 . 3 . 13 . 1 . 2 10 . 4 . . . 3 4 2 6 9 . 21 10 7 7 24 2 22 13 Attach 24 | . . . . . . 10 . 2 . . . 1 . . . . . 3 . . . . . . . 1 . . . . . 1 2 . 2 2 . Detach 10 | . . . . . . 4 . . . . . . . . . . . 3 . . . . . . . 1 . . . . . . 1 . 1 . . Swap 86 | . . 1 5 4 3 3 . 4 . . . 2 7 3 . . 1 10 . 2 3 2 . . 1 1 3 4 . 9 7 5 . . . 6 . Drop 239 | . . 1 8 2 7 26 . 16 3 2 2 . 21 . . . 3 11 . 3 . . . 2 7 4 4 9 . 29 13 8 4 16 1 21 16 Fire 380 | . 43 23 114 52 60 81 . . . . . . . . . . . . . . . . . 7 . . . . . . . . . . . . . Melee 1480 | . . . . 3 . 13 . 91 25 34 . 20 113 21 40 1 25 152 . 67 32 25 8 53 22 8 75 55 . 130 52 107 31 80 46 83 68 Ram . | . . . . . . . . . . . . . . . . . . . . . . . . . . . . . . . . . . . . . . Kick . | . . . . . . . . . . . . . . . . . . . . . . . . . . . . . . . . . . . . . . Crush . | . . . . . . . . . . . . . . . . . . . . . . . . . . . . . . . . . . . . . . Escape Stasis 101 | . . . . . . . . . . . . . . . . . . . . . . . . . . . 36 . . 8 18 36 . 1 . 2 . Rewire 59 | . . . . . . . . . 1 . . . . . 6 . 5 . . . 39 . . 1 3 . . . . . . 1 . . 3 . . Trap . | . . . . . . . . . . . . . . . . . . . . . . . . . . . . . . . . . . . . . . Miscellaneous 1087 | . 12 16 53 42 45 96 . 58 24 32 . 17 19 23 16 . 14 96 . 25 23 13 6 24 13 4 49 14 . 79 17 61 21 35 14 72 54 Route ------- -11/Scrapyard -10/Materials (discovered 4 exits: *Mat x3 / *Min) -10/Mines (discovered 2 exits: *Mat x2) -9/Materials (discovered 7 exits: *Mat x3 / *Min x2 / *Sto x2) -9/Storage -8/Materials (discovered 3 exits: *Fac x3) -7/Factory (discovered 6 exits: *Fac x4 / *Low x2) -7/Waste -7/Factory (discovered 6 exits: *Fac x4 / *Low x2) -7/Lower Caves -7/Lower Caves (discovered 2 exits: *Fac / *Zio) -7/Zion (discovered 2 exits: [*Dee] / [*Pro]) -6/Proximity Caves -6/Factory (discovered 5 exits: *Fac x3 / *Low x2) -6/Lower Caves -6/Lower Caves (discovered 2 exits: *Fac / *Dat) -6/Data Miner -5/Proximity Caves -5/Factory (discovered 8 exits: *Fac x4 / *Upp x2 / *Ext x2) -5/Waste -5/Factory (discovered 8 exits: Fac x4 / *Upp x2 / *Ext x2) -5/Extension (discovered 3 exits: *Fac x2 / *Cet) -5/Cetus (discovered 3 exits: *Fac x2 / *Arc) -5/Archives (discovered 3 exits: *Fac / *Hub x2) -5/Hub_04(d) (discovered 4 exits: *Fac x4) -4/Factory (discovered 7 exits: Res x4 / Upp x2 / Arm) -4/Waste -4/Factory (discovered 3 exits: *Upp x2 / *Arm) -4/Armory (discovered 3 exits: *Res x2 / [*Lab]) -4/Lab -3/Research (discovered 5 exits: *Res x3 / *Tes x2) -3/Testing -2/Research (discovered 5 exits: *Acc x3 / *Qua x2) -2/Quarantine (discovered 2 exits: *Acc / *Sec) -2/Section 7 -1/Access (discovered 2 exits: Sur / *Com) -1/Command (discovered 3 exits: Sur x2 / [*Ac0]) -1/Access_0 Near Former Tau Ceti IV History --------- Turn | Location | Event 2 | -11/Scrapyard | Discovered new exit (range 16) 16 | -11/Scrapyard | Entered Materials 23 | -10/Materials | Identified exit to Mines 94 | -10/Materials | Upgraded with Weapon slot (x1) 281 | -10/Materials | Discovered new exit (range 13) 304 | -10/Materials | Identified exit to Materials 324 | -10/Materials | Build established: Hacker-Mutant 417 | -10/Materials | Central database locked down 441 | -10/Materials | Core integrity fell below 50% 472 | -10/Materials | Reached level 2 603 | -10/Materials | Entered Mines 606 | -10/Mines | Discovered exit to Materials (range 6) 607 | -10/Mines | Learned location of Storage (-9) 719 | -10/Mines | Reached level 3 739 | -10/Mines | Upgraded with Propulsion slot (x1) 830 | -10/Mines | Learned 2 Materials zone layouts 839 | -10/Mines | Discovered exit to Materials (range 5) 842 | -10/Mines | Assisted by bots powering up and referring to "LRC-V3" 1019 | -10/Mines | Entered Materials 1019 | -9/Materials | Accompanied by 5 allies 1020 | -9/Materials | Identified exit to Mines 1021 | -9/Materials | Reached level 4 1022 | -9/Materials | Discovered new exit (range 16) 1044 | -9/Materials | Reached level 5 1067 | -9/Materials | Upgraded with Utility slot (x3) 1205 | -9/Materials | Identified exit to Storage 1271 | -9/Materials | Reached level 6 1390 | -9/Materials | Core integrity fell below 50% 1412 | -9/Materials | Identified exit to Materials 1466 | -9/Materials | Reached level 7 1487 | -9/Materials | Destroyed 7 combat bots 1522 | -9/Materials | Upgraded with Weapon slot (x1) 1743 | -9/Materials | Upgraded with Power slot (x1) 1850 | -9/Materials | Reached level 8 1950 | -9/Materials | Entered Storage 1950 | -9/Storage | Accompanied by 1 ally 1967 | -9/Storage | Upgraded with Weapon slot (x1) 2008 | -9/Storage | Learned location of Armory (-4) 2009 | -9/Storage | Build established: Hacker-Gunner 2020 | -9/Storage | Met a pair of Derelict thieves 2040 | -9/Storage | Reached level 9 2155 | -9/Storage | Central database locked down 2233 | -9/Storage | Upgraded with Utility slot (x1) 2350 | -9/Storage | First assault squad dispatched 2375 | -9/Storage | Reached level 10 2438 | -9/Storage | Destroyed 10 combat bots 2517 | -9/Storage | Garrison activated, responded to threat 2530 | -9/Storage | Build established: Hacker-Sprinter 2652 | -9/Storage | Entered Materials 2652 | -8/Materials | Accompanied by 8 allies 2654 | -8/Materials | Reached level 11 2674 | -8/Materials | Reached level 12 2927 | -8/Materials | Identified exit to Factory 2970 | -8/Materials | Upgraded with Utility slot (x2) 3025 | -8/Materials | Reached level 13 3180 | -8/Materials | Garrison activated, responded to threat 3383 | -8/Materials | Entered Factory 3383 | -7/Factory | Accompanied by 1 ally 3385 | -7/Factory | Reached level 14 3435 | -7/Factory | Identified exit to Lower Caves 3618 | -7/Factory | Reached level 15 3741 | -7/Factory | Discovered new exit (range 8) 4001 | -7/Factory | Discovered new exit (range 10) 4092 | -7/Factory | Garrison activated, responded to threat 4261 | -7/Factory | Upgraded with Utility slot (x1) 4291 | -7/Factory | Reached level 16 4431 | -7/Factory | Discovered new exit (range 14) 4578 | -7/Factory | Discovered new exit (range 15) 4583 | -7/Factory | First assault squad dispatched 4837 | -7/Factory | Fabricated Imp. Melee Analysis Suite (x1) 4866 | -7/Factory | Fabricated Imp. Melee Analysis Suite (x1) 4943 | -7/Factory | Fabricated Falx (x2) 4971 | -7/Factory | Fabricated Imp. System Shield (x1) 4972 | -7/Factory | Upgraded with Utility slot (x2) 4997 | -7/Factory | Fabricated Imp. System Shield (x1) 5184 | -7/Factory | Local fabrication network quarantined 5569 | -7/Factory | Manually triggered Chute Trap 5569 | -7/Factory | Sucked down chute 5569 | -7/Factory | Entered Waste 5572 | -7/Waste | Spotted C-40 Crusher 5580 | -7/Waste | Spotted C-40 Crusher 5584 | -7/Waste | EMP discharged 5584 | -7/Waste | Spotted C-40 Crusher 5586 | -7/Waste | Spotted C-40 Crusher 5586 | -7/Waste | Discovered new exit (range 12) 5591 | -7/Waste | Entered Factory 5901 | -7/Factory | Identified exit to Factory 5994 | -7/Factory | Garrison activated, responded to threat 6094 | -7/Factory | Reached level 17 6385 | -7/Factory | Garrison activated, responded to threat 6784 | -7/Factory | Central database locked down 6922 | -7/Factory | Fabricated Imp. Hacking Suite (x1) 6991 | -7/Factory | Fabricated Spear (x2) 7010 | -7/Factory | Fabricated Imp. Maneuvering Thrusters (x1) 7045 | -7/Factory | Fabricated Imp. Armor Integrity Analyzer (x1) 7158 | -7/Factory | Fabricated Imp. Target Analyzer (x1) 7343 | -7/Factory | Entered Lower Caves 7343 | -7/Lower Caves | Accompanied by 9 allies 7345 | -7/Lower Caves | Reached level 18 7403 | -7/Lower Caves | Spotted B-75 Beast 7418 | -7/Lower Caves | Learned Factory stockpile data 7443 | -7/Lower Caves | Encountered a Warlord checkpoint 7536 | -7/Lower Caves | Discovered new exit (range 5) 7652 | -7/Lower Caves | Destroyed B-75 Beast 7693 | -7/Lower Caves | Attracted the attention of an 0b10 base 7717 | -7/Lower Caves | Core integrity fell below 50% 7751 | -7/Lower Caves | Learned location of Extension (-5) 7751 | -7/Lower Caves | Learned location of 2 exits from Lower Caves 7751 | -7/Lower Caves | Learned 6 Proximity Caves zone layouts 7751 | -7/Lower Caves | Identified exit to Lower Caves 7754 | -7/Lower Caves | Learned Factory emergency access door positions 7773 | -7/Lower Caves | Found Alien Artifact 7773 | -7/Lower Caves | Identified Core Expander 7773 | -7/Lower Caves | Installed Core Expander, added new Weapon slot 8026 | -7/Lower Caves | Entered another Lower Caves area 8026 | -7/Lower Caves | Accompanied by 8 allies 8026 | -7/Lower Caves | Discovered exit to Factory (range 11) 8027 | -7/Lower Caves | Identified exit to Zion 8065 | -7/Lower Caves | Learned location of 1 exit from Factory 8065 | -7/Lower Caves | Learned Armory trap positions 8065 | -7/Lower Caves | Learned Extension emergency access door positions 8065 | -7/Lower Caves | Learned Armory security intel 8145 | -7/Lower Caves | Attracted the attention of an 0b10 base 8205 | -7/Lower Caves | Destroyed 10 combat bots 8212 | -7/Lower Caves | Learned location of 1 exit from Factory 8220 | -7/Lower Caves | Learned 8 Factory zone layouts 8220 | -7/Lower Caves | Learned 6 Upper Caves zone layouts 8220 | -7/Lower Caves | Learned Factory security intel 8220 | -7/Lower Caves | Learned Extension security intel 8220 | -7/Lower Caves | Learned Research terminal intel 8220 | -7/Lower Caves | Learned Armory terminal intel 8489 | -7/Lower Caves | Entered Zion 8489 | -7/Zion | Accompanied by 8 allies 8507 | -7/Zion | Found Prototype Device 8507 | -7/Zion | Identified Mobile Refinery Mk. CCLXVII 8520 | -7/Zion | Discovered new exit (range 8) 8523 | -7/Zion | Given A8's code to call for help 8557 | -7/Zion | Loaded intel: 5 derelict terminal locations 8621 | -7/Zion | Acquired unknown access codes intercepted by a Zionite 8688 | -7/Zion | Gained Derelict followers 8719 | -7/Zion | Opened final containment barrier to the Deep Caves 8724 | -7/Zion | Discovered new exit (range 3) 8724 | -7/Zion | Saw the warning signs outside the Deep Caves entrance 9073 | -7/Zion | Entered Proximity Caves 9073 | -6/Proximity Caves | Accompanied by 9 allies 9075 | -6/Proximity Caves | Reached level 19 9076 | -6/Proximity Caves | Upgraded with Utility slot (x1) 9129 | -6/Proximity Caves | Spotted B-75 Beast 9157 | -6/Proximity Caves | Destroyed B-75 Beast 9296 | -6/Proximity Caves | Learned 4 Factory zone layouts 9342 | -6/Proximity Caves | P-60 Hacker assimilated allied G-47 Trooper 9386 | -6/Proximity Caves | Attracted the attention of an 0b10 checkpoint 9410 | -6/Proximity Caves | Learned Factory terminal intel 9480 | -6/Proximity Caves | Discovered exit to Factory (range 16) 9514 | -6/Proximity Caves | Learned Factory trap positions 9576 | -6/Proximity Caves | Entered Factory 9576 | -6/Factory | Accompanied by 6 allies 9577 | -6/Factory | Identified exit to Lower Caves 9578 | -6/Factory | Identified exit to Factory 9580 | -6/Factory | Loaded intel: 106 trap records 9584 | -6/Factory | Loaded intel: 20 terminal locations 9629 | -6/Factory | Reached level 20 9652 | -6/Factory | Spotted B-75 Beast 9652 | -6/Factory | Destroyed B-75 Beast 10746 | -6/Factory | Fabricated Imp. Core Analyzer? 10756 | -6/Factory | Fabricated Lance (x2) 10792 | -6/Factory | Fabricated Imp. Phase Shifter? 10796 | -6/Factory | Fabricated Lance? 11130 | -6/Factory | Fabricated Actuator Array (x1) 11137 | -6/Factory | Build established: Machinist-Sprinter 11233 | -6/Factory | Fabricated Imp. Actuator Array (x1) 11406 | -6/Factory | Local fabrication network quarantined 11597 | -6/Factory | Entered Lower Caves 11597 | -6/Lower Caves | Accompanied by 1 ally 11598 | -6/Lower Caves | Encountered a Warlord checkpoint 11598 | -6/Lower Caves | Identified exit to Lower Caves 11599 | -6/Lower Caves | Reached level 21 11611 | -6/Lower Caves | Learned Factory terminal intel 11636 | -6/Lower Caves | Attracted the attention of an 0b10 checkpoint 11683 | -6/Lower Caves | Spotted B-75 Beast 11714 | -6/Lower Caves | Destroyed B-75 Beast 11718 | -6/Lower Caves | Learned 4 Factory zone layouts 12371 | -6/Lower Caves | Entered another Lower Caves area 12375 | -6/Lower Caves | Discovered exit to Factory (range 10) 12400 | -6/Lower Caves | Attacked by a faux Warlord 12465 | -6/Lower Caves | Destroyed 8 combat bots 12675 | -6/Lower Caves | Discovered new exit (range 23) 12720 | -6/Lower Caves | Learned Factory trap positions 12729 | -6/Lower Caves | Attracted the attention of an 0b10 outpost 12799 | -6/Lower Caves | Destroyed 7 combat bots 12830 | -6/Lower Caves | Entered Data Miner 12830 | -6/Data Miner | Accompanied by 1 ally 12830 | -6/Data Miner | Discovered new exit (range 6) 12837 | -6/Data Miner | Met Data Miner 12846 | -6/Data Miner | Learned location of Section 7 (-2) 12846 | -6/Data Miner | Acquired the access code to Warlord's prototype stash 12851 | -6/Data Miner | Received God Mode back door access code from Data Miner 12858 | -6/Data Miner | Data Conduit disabled 12863 | -6/Data Miner | Entered Proximity Caves 12872 | -5/Proximity Caves | Learned Factory interactive machine intel 13071 | -5/Proximity Caves | Reached level 22 13085 | -5/Proximity Caves | Attracted the attention of an 0b10 checkpoint 13125 | -5/Proximity Caves | Attracted the attention of an 0b10 outpost 13172 | -5/Proximity Caves | Destroyed 7 combat bots 13206 | -5/Proximity Caves | Discovered exit to Factory (range 16) 13214 | -5/Proximity Caves | Learned Factory emergency access door positions 13214 | -5/Proximity Caves | Learned Factory terminal intel 13236 | -5/Proximity Caves | Build established: Hacker-Sprinter 13400 | -5/Proximity Caves | Entered Factory 13400 | -5/Factory | Accompanied by 2 allies 13401 | -5/Factory | Identified exit to Upper Caves 13401 | -5/Factory | Identified exit to Extension 13403 | -5/Factory | Loaded intel: 64 trap records 13405 | -5/Factory | Loaded intel: 47 interactive machine locations 13406 | -5/Factory | Loaded intel: 21 terminal locations 13457 | -5/Factory | Discovered new exit (range 2) 13603 | -5/Factory | Reached level 23 13606 | -5/Factory | Upgraded with Utility slot (x1) 13644 | -5/Factory | Destroyed 7 combat bots 13809 | -5/Factory | Discovered new exit (range 22) 13871 | -5/Factory | Spotted B-75 Beast 13977 | -5/Factory | Build established: Wizard-Sprinter 13979 | -5/Factory | Discovered new exit (range 9) 14208 | -5/Factory | Central database locked down 14208 | -5/Factory | Adv. Hacking Suite fried by hacking feedback 14209 | -5/Factory | Garrison activated, responded to threat 14283 | -5/Factory | Destroyed 7 combat bots 14565 | -5/Factory | Reached level 24 14612 | -5/Factory | Discovered new exit (range 10) 14710 | -5/Factory | Identified exit to Factory 14740 | -5/Factory | Adv. Hacking Suite fried by hacking feedback 14873 | -5/Factory | Fabricated Reaction Control System? 14878 | -5/Factory | Fabricated Adv. Actuator Array? 14900 | -5/Factory | First assault squad dispatched 14940 | -5/Factory | Fabricated S-27 Virus? 14954 | -5/Factory | Fabricated Adv. Target Analyzer? 15007 | -5/Factory | Fabricated I-36 Angel (x1) 15030 | -5/Factory | Build established: Hacker-Sprinter 15499 | -5/Factory | Fabricated Exp. System Shield (x1) 15516 | -5/Factory | Manually triggered Chute Trap 15516 | -5/Factory | Sucked down chute 15516 | -5/Factory | Entered Waste 15522 | -5/Waste | Spotted C-40 Crusher 15524 | -5/Waste | Spotted C-40 Crusher 15532 | -5/Waste | Spotted C-40 Crusher 15559 | -5/Waste | Spotted C-40 Crusher 15566 | -5/Waste | Spotted C-40 Crusher 15569 | -5/Waste | Spotted C-40 Crusher 15570 | -5/Waste | Discovered new exit (range 14) 15575 | -5/Waste | 4 allies followed down the chute 15580 | -5/Waste | 4 allies followed down the chute 15586 | -5/Waste | Entered Factory 15587 | -5/Factory | Loaded intel: 22 terminal locations 15589 | -5/Factory | Discovered exit to Upper Caves (range 21) 15708 | -5/Factory | Central database locked down 15764 | -5/Factory | Exp. System Shield fried by hacking feedback 15926 | -5/Factory | Fabricated Exp. System Shield (x1) 15993 | -5/Factory | Fabricated Adv. Force Field? 16029 | -5/Factory | Garrison activated, responded to threat 16158 | -5/Factory | Fabricated Adv. Target Analyzer? 16215 | -5/Factory | Fabricated Kinetic Spear (x1) 16231 | -5/Factory | Reached level 25 16487 | -5/Factory | Local fabrication network quarantined 16531 | -5/Factory | Spotted B-75 Beast 16544 | -5/Factory | Destroyed B-75 Beast 16725 | -5/Factory | Entered Extension 16725 | -5/Extension | Accompanied by 5 allies 16742 | -5/Extension | Identified exit to Cetus 16743 | -5/Extension | Rescued A7 16747 | -5/Extension | Rescued a captive Derelict 16749 | -5/Extension | Rescued a captive Derelict 16767 | -5/Extension | Rescued a captive Derelict 16829 | -5/Extension | Rescued a captive Derelict 16832 | -5/Extension | Rescued a captive Derelict 16833 | -5/Extension | Rescued a captive Derelict 16838 | -5/Extension | Rescued a captive Derelict 16854 | -5/Extension | Spotted B-75 Beast 16861 | -5/Extension | Spotted B-75 Beast 16879 | -5/Extension | Destroyed B-75 Beast 16885 | -5/Extension | Destroyed B-75 Beast 17025 | -5/Extension | First assault squad dispatched 17030 | -5/Extension | Rescued a captive Derelict 17031 | -5/Extension | Rescued a captive Derelict 17147 | -5/Extension | Rescued a captive Derelict 17147 | -5/Extension | Rescued a captive Derelict 17225 | -5/Extension | Disrupted transfer network 17235 | -5/Extension | Disrupted transfer network 17316 | -5/Extension | Entered Cetus 17316 | -5/Cetus | Accompanied by 18 allies 17321 | -5/Cetus | Acquired a Cetus Manufacturing Module code from A7 17322 | -5/Cetus | Spotted Cetus Guard 17322 | -5/Cetus | Spotted Cetus Guard 17325 | -5/Cetus | Spotted Cetus Guard 17325 | -5/Cetus | Spotted Cetus Guard 17329 | -5/Cetus | Destroyed Cetus Guard 17330 | -5/Cetus | Allies destroyed Cetus Guard 17337 | -5/Cetus | Allies destroyed Cetus Guard 17341 | -5/Cetus | Destroyed Cetus Guard 17357 | -5/Cetus | Discovered exit to Factory (range 22) 17379 | -5/Cetus | Started Cetus Manufacturing Module 17404 | -5/Cetus | Manufactured an Enhanced Grunt 17429 | -5/Cetus | Manufactured an Enhanced Grunt 17454 | -5/Cetus | Manufactured an Enhanced Grunt 17479 | -5/Cetus | Manufactured an Enhanced Grunt 17504 | -5/Cetus | Manufactured an Enhanced Grunt 17609 | -5/Cetus | Discovered new exit (range 15) 17615 | -5/Cetus | Spotted Cetus Guard 17616 | -5/Cetus | Spotted Cetus Guard 17661 | -5/Cetus | Spotted Cetus Guard 17661 | -5/Cetus | Spotted Cetus Guard 17664 | -5/Cetus | Destroyed Cetus Guard 17668 | -5/Cetus | Allies destroyed Cetus Guard 17674 | -5/Cetus | Allies destroyed Cetus Guard 17719 | -5/Cetus | Discovered exit to Factory (range 16) 17721 | -5/Cetus | Met Revision 17 17760 | -5/Cetus | P-70 Sage assimilated allied KH-25R(h) 17850 | -5/Cetus | Crushed by falling debris 17852 | -5/Cetus | Entered Archives 17852 | -5/Archives | Accompanied by 20 allies 17858 | -5/Archives | Unable to access archive contents 17860 | -5/Archives | Discovered exit to Factory (range 13) 17861 | -5/Archives | Discovered new exit (range 20) 17864 | -5/Archives | Reached level 26 17880 | -5/Archives | Discovered new exit (range 16) 17936 | -5/Archives | Entered Hub_04(d) 17936 | -5/Hub_04(d) | Accompanied by 18 allies 17939 | -5/Hub_04(d) | Discovered exit to Factory (range 22) 17940 | -5/Hub_04(d) | Discovered exit to Factory (range 3) 17976 | -5/Hub_04(d) | Discovered exit to Factory (range 18) 18163 | -5/Hub_04(d) | Garrison activated, responded to threat 18174 | -5/Hub_04(d) | Garrison activated, responded to threat 18177 | -5/Hub_04(d) | Spotted B-75 Beast 18179 | -5/Hub_04(d) | Destroyed B-75 Beast 18194 | -5/Hub_04(d) | P-70 Sage assimilated hostile L-41 Fighter 18468 | -5/Hub_04(d) | Network Hub disabled 18468 | -5/Hub_04(d) | Network Hub disabled 18468 | -5/Hub_04(d) | Allied Derelicts emerged from ambush trap array 18484 | -5/Hub_04(d) | Spotted Lightning 18491 | -5/Hub_04(d) | Network Hub disabled 18491 | -5/Hub_04(d) | Spotted Lightning 18491 | -5/Hub_04(d) | Spotted Lightning 18491 | -5/Hub_04(d) | Spotted Lightning 18507 | -5/Hub_04(d) | Entered Factory 18507 | -4/Factory | Accompanied by 5 allies 18549 | -4/Factory | Reached level 27 18555 | -4/Factory | Garrison activated, responded to threat 18584 | -4/Factory | Identified exit to Research 18745 | -4/Factory | Identified exit to Upper Caves 18745 | -4/Factory | Identified exit to Armory 18757 | -4/Factory | First assault squad dispatched 18790 | -4/Factory | High security lockdown imminent 18813 | -4/Factory | Manually triggered Chute Trap 18813 | -4/Factory | Sucked down chute 18813 | -4/Factory | Entered Waste 18814 | -4/Waste | Joined by Warlord forces that had cleared the area 18835 | -4/Waste | Found Prototype Device 18835 | -4/Waste | Identified Exp. Weapon Cycler 18887 | -4/Waste | Discovered new exit (range 13) 18921 | -4/Waste | Upgraded with Utility slot (x1) 18938 | -4/Waste | Entered Factory 18938 | -4/Factory | Accompanied by 20 allies 18957 | -4/Factory | Garrison activated, responded to threat 19016 | -4/Factory | Spotted B-86 Titan 19041 | -4/Factory | Destroyed B-86 Titan 19133 | -4/Factory | Reached level 28 19188 | -4/Factory | First assault squad dispatched 19486 | -4/Factory | Build established: Wizard-Sprinter 19526 | -4/Factory | Discovered exit to Upper Caves (range 4) 19677 | -4/Factory | High security lockdown imminent 19698 | -4/Factory | Destroyed 7 combat bots 19740 | -4/Factory | Local fabrication network quarantined 19745 | -4/Factory | Fabricated Enh. Force Lance (x1) 19757 | -4/Factory | High security lockdown engaged 19819 | -4/Factory | Entered Armory 19820 | -4/Armory | Loaded intel: 29 trap records 19822 | -4/Armory | Loaded intel: 14 terminal locations 20137 | -4/Armory | Fabricated Q-thruster (x2) 20188 | -4/Armory | Fabricated Exp. System Shield (x1) 20261 | -4/Armory | Fabricated Exp. Hacking Suite (x1) 20308 | -4/Armory | Fabricated Exp. Hacking Suite (x1) 20330 | -4/Armory | Spotted B-86 Titan 20397 | -4/Armory | Destroyed B-86 Titan 20428 | -4/Armory | Local fabrication network quarantined 20430 | -4/Armory | Build established: Wizard-Mutant 20653 | -4/Armory | Discovered new exit (range 4) 20654 | -4/Armory | Entered Lab 20654 | -4/Lab | Discovered exit to Research (range 9) 20740 | -4/Lab | Entered Research 20741 | -3/Research | Loaded intel: 18 terminal locations 20742 | -3/Research | Reached level 29 20811 | -3/Research | Identified exit to Testing 20811 | -3/Research | Identified exit to Research 20908 | -3/Research | Found Prototype Device 20908 | -3/Research | Identified System Purifier 21070 | -3/Research | Found Prototype Device 21070 | -3/Research | Identified Exp. Transmission Jammer 21423 | -3/Research | Spotted B-86 Titan 21444 | -3/Research | Destroyed B-86 Titan 21486 | -3/Research | Found Prototype Device 21486 | -3/Research | Identified Exp. Shield Generator 21574 | -3/Research | Central database locked down 21670 | -3/Research | Reached level 30 21786 | -3/Research | Found Prototype Device 21786 | -3/Research | Identified Exp. ECM Suite 21819 | -3/Research | Fabricated Adv. Force Booster? 21826 | -3/Research | Fabricated Exp. Core Analyzer? 21902 | -3/Research | Fabricated Adv. Reaction Control System (x1) 21912 | -3/Research | Fabricated Exp. Target Analyzer? 22038 | -3/Research | Local fabrication network quarantined 22147 | -3/Research | Garrison activated, responded to threat 22175 | -3/Research | Found Enh. Force Lance 22177 | -3/Research | Found Enh. Force Lance 22180 | -3/Research | Found Enh. Force Lance 22228 | -3/Research | Entered Testing 22228 | -3/Testing | Accompanied by 1 ally 22368 | -3/Testing | Protovariant out of control (PY-JSJQ4767F8) 22368 | -3/Testing | Unleashed a protovariant (PY-JSJQ4767F8) 22409 | -3/Testing | Spotted PY-JSJQ4767F8 22421 | -3/Testing | Destroyed PY-JSJQ4767F8 22455 | -3/Testing | Spotted Striker 22455 | -3/Testing | Spotted Striker 22515 | -3/Testing | Found Prototype Device 22515 | -3/Testing | Identified Exp. Hardlight Generator 22662 | -3/Testing | Found Prototype Slashing Weapon 22662 | -3/Testing | Identified Vibroblade 22742 | -3/Testing | Found Prototype Device 22742 | -3/Testing | Identified AEGIS Remote Shield 22878 | -3/Testing | Fabricated Exp. Armor Integrity Analyzer (x1) 22916 | -3/Testing | Fabricated Femtoactuators (x1) 22955 | -3/Testing | Fabricated Exp. Phase Shifter (x1) 22983 | -3/Testing | Fabricated Exp. Terrain Scanner (x1) 23017 | -3/Testing | Fabricated Cld. Field Propulsion Drive (x1) 23032 | -3/Testing | Local fabrication network quarantined 23077 | -3/Testing | Entered Research 23079 | -2/Research | Reached level 31 23104 | -2/Research | Upgraded with Utility slot (x1) 23149 | -2/Research | Spotted B-90 Cyclops 23181 | -2/Research | Identified exit to Access 23256 | -2/Research | Reached level 32 23315 | -2/Research | Build established: Wizard-Sprinter 23381 | -2/Research | Destroyed 12 combat bots 23526 | -2/Research | Spotted B-90 Cyclops 23531 | -2/Research | Destroyed B-90 Cyclops 23577 | -2/Research | First assault squad dispatched 23608 | -2/Research | Fabricated Exp. Actuator Array (x1) 23642 | -2/Research | Fabricated Exp. Melee Analysis Suite? 23691 | -2/Research | Fabricated Cld. Fission Core (x1) 23714 | -2/Research | Spotted B-90 Cyclops 23721 | -2/Research | Destroyed B-90 Cyclops 23744 | -2/Research | Identified exit to Quarantine 23943 | -2/Research | Spotted B-90 Cyclops 23944 | -2/Research | Destroyed B-90 Cyclops 24063 | -2/Research | Reached level 33 24068 | -2/Research | P-80 Master assimilated hostile S-43 Plague 24156 | -2/Research | Fabricated Mni. Fusion Reactor (x1) 24277 | -2/Research | Entered Quarantine 24277 | -2/Quarantine | Accompanied by 11 allies 24398 | -2/Quarantine | Found Alien Artifact 24414 | -2/Quarantine | Garrison activated, responded to threat 24457 | -2/Quarantine | Reached level 34 24478 | -2/Quarantine | Found Alien Artifact 24478 | -2/Quarantine | Identified Terrabomb 24478 | -2/Quarantine | Used Terrabomb 24483 | -2/Quarantine | P-80 Master assimilated hostile B-74 Champion 24517 | -2/Quarantine | Central database locked down 24522 | -2/Quarantine | Identified Subatomic Replicator 24522 | -2/Quarantine | Used Subatomic Replicator to replicate AEGIS Remote Shield 24528 | -2/Quarantine | Found Alien Artifact 24528 | -2/Quarantine | Identified Dimensional Node Initializer 24528 | -2/Quarantine | Initialized slip node 24533 | -2/Quarantine | Found Alien Artifact 24533 | -2/Quarantine | Identified Transdimensional Reconstructor 24533 | -2/Quarantine | Warped through subspace to slip node 24536 | -2/Quarantine | Found Alien Artifact 24536 | -2/Quarantine | Identified Hpw. Transdimensional Reconstructor 24536 | -2/Quarantine | Warped through subspace to slip node 24541 | -2/Quarantine | Found Hpw. Transdimensional Reconstructor 24600 | -2/Quarantine | P-80 Master assimilated hostile W-44 Eye 24674 | -2/Quarantine | Spotted Fortress 24692 | -2/Quarantine | Discovered new exit (range 5) 24693 | -2/Quarantine | Entered Section 7 24717 | -2/Section 7 | Found Alien Artifact 24717 | -2/Section 7 | Identified Integrated Dissipator 24717 | -2/Section 7 | Installed Integrated Dissipator, increased core heat dissipation (+2%) 24725 | -2/Section 7 | Discovered exit to Access (range 16) 24837 | -2/Section 7 | Crushed by falling debris 24837 | -2/Section 7 | Spotted B-90 Cyclops 24872 | -2/Section 7 | Spotted B-90 Cyclops 24904 | -2/Section 7 | Central database locked down 24938 | -2/Section 7 | Spotted S7 Guard 24941 | -2/Section 7 | Destroyed S7 Guard 24950 | -2/Section 7 | Spotted S7 Guard 24951 | -2/Section 7 | Destroyed S7 Guard 24972 | -2/Section 7 | Destroyed 8 combat bots 24975 | -2/Section 7 | Found Alien Artifact 24975 | -2/Section 7 | Identified Integrated Singularity Reactor 24975 | -2/Section 7 | Installed Integrated Singularity Reactor, increased core energy generation (+2%) 24990 | -2/Section 7 | Found Alien Artifact 24990 | -2/Section 7 | Identified Integrated Heat Negator 24990 | -2/Section 7 | Installed Integrated Heat Negator, increased core heat dissipation (+2%) 25022 | -2/Section 7 | Spotted S7 Guard 25026 | -2/Section 7 | Destroyed S7 Guard 25034 | -2/Section 7 | Found Alien Artifact 25034 | -2/Section 7 | Identified Core Membrane 25034 | -2/Section 7 | Installed Core Membrane, gained immunity to corruption 25128 | -2/Section 7 | Found Integrated Dissipator 25128 | -2/Section 7 | Installed Integrated Dissipator, increased core heat dissipation (+2%) 25142 | -2/Section 7 | Found Alien Artifact 25142 | -2/Section 7 | Identified Integrated Reactor 25142 | -2/Section 7 | Installed Integrated Reactor, increased core energy generation (+2%) 25245 | -2/Section 7 | Spotted Alpha 7 25253 | -2/Section 7 | Spotted Alpha 7 25254 | -2/Section 7 | Destroyed Alpha 7 25285 | -2/Section 7 | Destroyed Alpha 7 25288 | -2/Section 7 | Found Prototype Ballistic Gun 25288 | -2/Section 7 | Identified Multirail 25356 | -2/Section 7 | Spotted B-99 Colossus 25444 | -2/Section 7 | Found Alien Artifact 25444 | -2/Section 7 | Identified LRC Insulator 25444 | -2/Section 7 | Installed LRC Insulator, gained EM resistance (25) 25447 | -2/Section 7 | Found Alien Artifact 25447 | -2/Section 7 | Identified LRC Matter Compressor 25447 | -2/Section 7 | Installed LRC Matter Compressor, increased matter storage capacity (+125) 25463 | -2/Section 7 | Found Core Expander 25463 | -2/Section 7 | Installed Core Expander, added new Power slot 25465 | -2/Section 7 | Found Core Expander 25465 | -2/Section 7 | Installed Core Expander, added new Propulsion slot 25489 | -2/Section 7 | Found Terrabomb 25496 | -2/Section 7 | Spotted Executioner 25498 | -2/Section 7 | Spotted Executioner 25517 | -2/Section 7 | Destroyed Executioner 25521 | -2/Section 7 | Destroyed Executioner 25564 | -2/Section 7 | Entered Access 25564 | -1/Access | Accompanied by 2 allies 25566 | -1/Access | Reached level 35 25590 | -1/Access | Exp. System Shield fried by hacking feedback 25595 | -1/Access | Identified exit to Surface 25595 | -1/Access | Identified exit to Command 25757 | -1/Access | Fabricated Cld. Q-thruster (x1) 25767 | -1/Access | Local fabrication network quarantined 25772 | -1/Access | Fabricated Structural Scanner (x2) 25849 | -1/Access | Destroyed 7 combat bots 25913 | -1/Access | Build established: Machinist-Sprinter 25927 | -1/Access | P-80 Master assimilated allied Administrator 9b 25958 | -1/Access | Destroyed 8 combat bots 25966 | -1/Access | Entered Command 25966 | -1/Command | Accompanied by 1 ally 25968 | -1/Command | Reached level 36 25997 | -1/Command | Spotted B-99 Colossus 26006 | -1/Command | Destroyed B-99 Colossus 26120 | -1/Command | Central database locked down 26193 | -1/Command | Disengaged cave seal 26212 | -1/Command | Spotted B-99 Colossus 26243 | -1/Command | Destroyed B-99 Colossus 26264 | -1/Command | Destroyed 14 combat bots 26347 | -1/Command | Spotted M Guard 26347 | -1/Command | Spotted Combat Programmer 26348 | -1/Command | Spotted Combat Programmer 26348 | -1/Command | Spotted M Guard 26354 | -1/Command | Destroyed M Guard 26359 | -1/Command | Destroyed M Guard 26362 | -1/Command | Destroyed Combat Programmer 26367 | -1/Command | Destroyed Combat Programmer 26367 | -1/Command | Destroyed all MAIN.C guards 26428 | -1/Command | Met MAIN.C 26428 | -1/Command | Reached level 37 26503 | -1/Command | 0b10 Conduit disabled 26514 | -1/Command | Destroyed MAIN.C Shell 26516 | -1/Command | MAIN.C activated Command garrisons 26522 | -1/Command | Destroyed MAIN.C 26531 | -1/Command | Found Zero-point Reactor 26544 | -1/Command | Found Prototype Ballistic Cannon 26544 | -1/Command | Identified Omega Cannon 26552 | -1/Command | Found Prototype Protection 26552 | -1/Command | Identified Exp. Powered Armor 26555 | -1/Command | Found Prototype Protection 26555 | -1/Command | Identified Centrium Heavy Armor Plating 26747 | -1/Command | Used Terrabomb 26754 | -1/Command | Crushed by falling debris 26755 | -1/Command | Crushed by falling debris 26900 | -1/Command | Destroyed 8 combat bots 26900 | -1/Command | Warped through subspace to slip node 26900 | -1/Command | Discovered new exit (range 4) 26903 | -1/Command | Entered Access_0 26904 | -1/Access_0 | Met Architect 26905 | -1/Access_0 | Reached level 38 26906 | -1/Access_0 | Architect warped through subspace 26909 | -1/Access_0 | Destroyed A8 26947 | -1/Access_0 | Architect warped through subspace 26977 | -1/Access_0 | Architect warped through subspace 26994 | -1/Access_0 | Subspace Access Node disabled 27020 | -1/Access_0 | A6 warped into view 27028 | -1/Access_0 | Destroyed A6 27030 | -1/Access_0 | Core integrity fell below 50% 27037 | -1/Access_0 | Architect warped through subspace 27104 | -1/Access_0 | Architect warped through subspace 27126 | -1/Access_0 | Subspace Access Node disabled 27139 | -1/Access_0 | Architect warped through subspace 27161 | -1/Access_0 | Found Prototype Device 27161 | -1/Access_0 | Identified Desublimator 27169 | -1/Access_0 | Architect warped through subspace 27184 | -1/Access_0 | A5 warped into view 27187 | -1/Access_0 | Architect warped through subspace 27191 | -1/Access_0 | Destroyed A5 27206 | -1/Access_0 | Architect warped through subspace 27208 | -1/Access_0 | Subspace Access Node disabled 27224 | -1/Access_0 | Architect warped through subspace 27236 | -1/Access_0 | Architect warped through subspace 27244 | -1/Access_0 | Subspace Access Node disabled 27258 | -1/Access_0 | Destroyed Architect 27259 | -1/Access_0 | Architect triggered a singularity event 27262 | -1/Access_0 | Found Prototype Hackware 27262 | -1/Access_0 | Identified Architect God Chip D 27264 | -1/Access_0 | Found Alien Energy Gun 27264 | -1/Access_0 | Identified Modified Quantum Sheargun 27266 | -1/Access_0 | Extracted unknown sensor trigger ID from Architect's data core 27267 | -1/Access_0 | Found Hpw. Transdimensional Reconstructor 27267 | -1/Access_0 | Warped through subspace to slip node 27267 | -1/Access_0 | Discovered exit to Surface (range 8) 27269 | *** | Escaped singularity! Last Messages --------------- 27263_ A0_COM: 7. 27264_ A0_COM: 6. 27264_ Dropped Plasma Lance. 27264_ HV Slug penetrates Wall. 27264_ Acquired Alien Energy Gun. 27264_ Identified Modified Quantum Sheargun. 27265_ A0_COM: 5. 27266_ A0_COM: 4. 27266_ Dropped Modified Quantum Sheargun. 27266_ HV Slug penetrates Wall. 27266_ Penetrated by HV Slug. 27266_ HV Slug penetrates Wall. 27266_ Acquired data core, extracted unknown sensor trigger ID. 27267_ A0_COM: 3. 27267_ Acquired Hpw. Transdimensional Reconstructor. 27267_ Warped through subspace, drawn to slip node. 27267_ EXIT=FOUND: SURFACE 27268_ A0_COM: 2. 27269_ A0_COM: 1. [Achievement: Planet Killer] Map ----- +----------------------------------------------------+ | | | | | | | | | | | | | | | | | | | | | | | | | | | | | | | | | ?????????????????????????????????????????????????? | | ?????#????????#??##?????????????????????#????????? | | ????????##??#?#?????????????##???##?#???????????#? | | ?????#?????????????#??#??????????????????????????? | | ????????????????????#??????????#??????#??????????? | | ?#??????????????#??????#?#???????#??????????????#? | | ???????#?????????????#??###???#??#????#???????#??? | | ?????????#?????????????## ##?????????????????????# | | ????#?#?????????#??????# #???????????#?????????? | | ??#????????????????????# @ #?????????????????????? | | ????????????##????????## #???????????#?????????? | | #??????????#???????#??# #??????????#??????????? | | ??#????###????????????# ##?????????????#???????? | | ???????????????##????### #?????????????????????? | | ??????#???????????????# #??????#????????#?????? | | ?#????????????????????# ##??????????#?????????#? | | ????#?????#????#??????# < #??#??????????????????# | | ??????????????????#???# ##?????????????????????? | | ????#?????????????????## #???#??????????????????? | | ????????????#???#????#?####??#??????#??#?????????? | | ????????????????????????????????#?#??#???#???????? | | ?#????#???????#??????????????????????##??????#?#?? | | #??#????????????#????????????????????????????????? | | ?????????????????#?#????????????????????????#????? | | ????????????????????#??????????#?#??????????#????? | | ???????????????????????#????#???#???????#????????# | | ????#?????????????????????????????#?#????????????? | | #????#???????????#?????????????#?????????????#???? | | ?????#??????????#????????##??????????????????????? | | ??#????????????????????????????????????#?????????? | | ??????????????????????????#???#???????#??????????? | | ??#???#?#??????????#??????????#??????????????????? | | ????????#???????????#????????#????#???#??????#???? | | ???????????????????#?????????????????????#???????? | +----------------------------------------------------+ Best States ------------- Heat Dissipation 117 Energy Generation 117 Energy Capacity 710 Matter Stores 425 Matter Capacity 425 Sight Range 23 Terrain Scan Range 30 Terrain Scan Density 410 Additional Mass Support 12 Resistance: EM 25 Melee Speed Boost 50 Phase Shifting 20 Evasion (%) 99 Targeting Accuracy 32 Melee Accuracy 24 Target Analysis 12 Core Analysis 15 Armor Integrity Analysis 90 Recoil Reduction 2 Force Boost 5 Offensive Hacking 42 Defensive Hacking 47 Item Schematics ----------------- Hacking Suite | -7/Factory | Hacked System Backup Module | -7/Factory | Hacked Imp. Melee Analysis Suite | -7/Factory | Scanalyzed Imp. System Shield | -7/Factory | Hacked Quantum Capacitor | -7/Factory | Downloaded Imp. Hacking Suite | -7/Factory | Hacked Spear | -7/Factory | Hacked Imp. Maneuvering Thrusters | -7/Factory | Hacked Imp. Target Analyzer | -7/Factory | Hacked Imp. Armor Integrity Analyzer | -7/Factory | Hacked Actuator Array | -7/Factory | Hacked Ripper | -7/Zion | Free Tactical Coordination Suite | -7/Zion | Free Adv. Melee Analysis Suite | -6/Factory | Hacked Imp. System Restoration Module | -6/Factory | Hacked Imp. Core Analyzer | -6/Factory | Hacked Imp. Phase Shifter | -6/Factory | Hacked Lance | -6/Factory | Hacked Imp. System Backup Module | -6/Factory | Scanalyzed Imp. Actuator Array | -6/Factory | Hacked Combat Drone Bay | -6/Data Miner | Free Lgt. Regenerative Plating | -6/Data Miner | Free Exp. Flexi-carbon Leg | -6/Data Miner | Free Triangulator | -6/Data Miner | Free Exp. Terrain Scan Processor | -6/Data Miner | Free Mni. Smartbomb Launcher | -6/Data Miner | Free Plasma Sword | -6/Data Miner | Free Exp. System Shield | -5/Factory | Hacked Reaction Control System | -5/Factory | Hacked Kinetic Spear | -5/Factory | Hacked Adv. Actuator Array | -5/Factory | Hacked Adv. Target Analyzer | -5/Factory | Hacked Hyp. Coil Gun | -5/Factory | Hacked Adv. Force Field | -5/Factory | Hacked Adv. Shield Generator | -5/Factory | Hacked Cmb. Gravmag System | -5/Factory | Hacked Adv. Hacking Suite | -5/Extension | Hacked Force Booster | -5/Extension | Hacked Adv. Armor Integrity Analyzer | -5/Extension | Hacked Nanoactuators | -5/Extension | Hacked Imp. Force Booster | -5/Extension | Hacked Force Lance | -5/Extension | Hacked Enh. Force Lance | -5/Extension | Hacked Cld. Deuterium Engine | -5/Extension | Hacked Q-thruster | -5/Hub_04(d) | Hacked HERF Cannon | -5/Hub_04(d) | Hacked Mic. Fission Core | -5/Hub_04(d) | Hacked Exp. Hacking Suite | -4/Factory | Hacked Cld. Nuclear Pulse Thruster | -4/Armory | Hacked System Purifier | -3/Research | Scanalyzed Exp. Core Analyzer | -3/Research | Hacked Exp. Target Analyzer | -3/Research | Hacked Exp. Melee Analysis Suite | -3/Research | Hacked Adv. Reaction Control System | -3/Research | Hacked Exp. Terrain Scanner | -3/Research | Hacked Adv. Force Booster | -3/Research | Hacked Hvy. Regenerative Plating | -3/Testing | Hacked Cld. Field Propulsion Drive | -3/Testing | Hacked Femtoactuators | -3/Testing | Hacked Exp. Phase Shifter | -3/Testing | Hacked Exp. Armor Integrity Analyzer | -3/Testing | Hacked Imp. Stasis Canceller | -3/Testing | Hacked Exp. Actuator Array | -2/Research | Hacked Cld. Fission Core | -2/Research | Hacked Mni. Fusion Reactor | -2/Research | Hacked Cmb. Linear Gravjet | -2/Quarantine | Hacked Enh. Nova Cannon | -2/Quarantine | Hacked Cld. Q-thruster | -2/Quarantine | Hacked Quantum Reactor | -2/Quarantine | Hacked Centrium Leg | -2/Quarantine | Hacked Adv. Heavy Siege Treads | -2/Quarantine | Hacked Stasis Projector | -2/Quarantine | Hacked Gui. Micro-nuke Launcher | -2/Section 7 | Hacked Enh. Quantum Rifle | -2/Section 7 | Hacked Biometal Heavy Treads | -2/Section 7 | Hacked Structural Scanner | -1/Access | Hacked Imp. Quantum Reactor | -1/Access | Hacked Lgt. Quantum Reactor | -1/Access | Hacked Graviton Cannon | -1/Command | Hacked Robot Schematics ------------------ L-41 Fighter | -7/Factory | Hacked S-27 Virus | -6/Data Miner | Free G-50 Soldier | -6/Data Miner | Free H-66 Slayer | -6/Data Miner | Free I-36 Angel | -6/Data Miner | Free Y-64 Sentinel | -5/Factory | Hacked X-72 Disruptor | -5/Factory | Hacked B-60 Warrior | -5/Factory | Hacked E-15 Imp | -5/Factory | Hacked B-48 Gladiator | -5/Extension | Hacked L-61 Swordsman | -4/Factory | Hacked G-67 Veteran | -4/Armory | Hacked I-47 Archangel | -4/Armory | Hacked O-32 Director | -4/Armory | Hacked P-70 Sage | -4/Armory | Hacked H-88 Terminator | -2/Research | Hacked P-80 Master | -2/Research | Hacked G-73 Enforcer | -2/Quarantine | Hacked C-65 Expert | -2/Quarantine | Hacked B-74 Champion | -2/Section 7 | Hacked S-43 Plague | -2/Section 7 | Hacked K-01 Serf | -2/Section 7 | Hacked A-15 Conveyor | -1/Access | Hacked R-06 Scavenger | -1/Access | Hacked Fabricated ------------ Imp. Melee Analysis Suite | x1 | -7/Factory Imp. Melee Analysis Suite | x1 | -7/Factory Falx | x2 | -7/Factory | Preloaded Imp. System Shield | x1 | -7/Factory Imp. System Shield | x1 | -7/Factory Imp. Hacking Suite | x1 | -7/Factory Spear | x2 | -7/Factory Imp. Maneuvering Thrusters | x1 | -7/Factory Imp. Armor Integrity Analyzer | x1 | -7/Factory Imp. Target Analyzer | x1 | -7/Factory Imp. Core Analyzer | x1 | -6/Factory Lance | x2 | -6/Factory Imp. Phase Shifter | x1 | -6/Factory Lance | x2 | -6/Factory Actuator Array | x1 | -6/Factory Imp. Actuator Array | x1 | -6/Factory Reaction Control System | x1 | -5/Factory Adv. Actuator Array | x1 | -5/Factory S-27 Virus | x4 | -5/Factory Adv. Target Analyzer | x1 | -5/Factory I-36 Angel | x1 | -5/Factory Exp. System Shield | x1 | -5/Factory Exp. System Shield | x1 | -5/Factory Adv. Force Field | x2 | -5/Factory Adv. Target Analyzer | x1 | -5/Factory Kinetic Spear | x1 | -5/Factory Enh. Force Lance | x1 | -4/Factory Q-thruster | x2 | -4/Armory Exp. System Shield | x1 | -4/Armory Exp. Hacking Suite | x1 | -4/Armory Exp. Hacking Suite | x1 | -4/Armory Adv. Force Booster | x2 | -3/Research Exp. Core Analyzer | x1 | -3/Research Adv. Reaction Control System | x1 | -3/Research Exp. Target Analyzer | x1 | -3/Research Exp. Armor Integrity Analyzer | x1 | -3/Testing Femtoactuators | x1 | -3/Testing Exp. Phase Shifter | x1 | -3/Testing Exp. Terrain Scanner | x1 | -3/Testing Cld. Field Propulsion Drive | x1 | -3/Testing Exp. Actuator Array | x1 | -2/Research Exp. Melee Analysis Suite | x1 | -2/Research Cld. Fission Core | x1 | -2/Research Mni. Fusion Reactor | x1 | -2/Research Cld. Q-thruster | x1 | -1/Access Structural Scanner | x2 | -1/Access Alien Tech Used ----------------- Core Expander Terrabomb Subatomic Replicator Dimensional Node Initializer Transdimensional Reconstructor High-powered Transdimensional Reconstructor Integrated Dissipator Integrated Singularity Reactor Integrated Heat Negator Core Membrane Integrated Reactor LRC Insulator LRC Matter Compressor Modified Quantum Sheargun Achievements -------------- Behind The Curtain Planet Killer The Bigger They Are Challenges ------------ None RPGLIKE | -11 -10 -10 -9 -9 -8 -7 -7 -7 -7 -7 -7 -6 -6 -6 -6 -6 -5 -5 -5 -5 -5 -5 -5 -5 -4 -4 -4 -4 -4 -3 -3 -2 -2 -2 -1 -1 -1 --------- Run | Scr Mat Min Mat Sto Mat Fac Was Fac Low Low Zio Pro Fac Low Low Dat Pro Fac Was Fac Ext Cet Arc Hub Fac Was Fac Arm Lab Res Tes Res Qua Sec Acc Com Ac0 Levels Raised 37 | . 1 1 5 2 3 3 . 1 1 . . 1 1 1 . . 1 2 . 1 . . 1 . 1 . 1 . . 2 . 3 1 . 1 2 1 XP Earned 59559 | 3000 1995 1991 6958 4036 3915 4423 67 2089 544 622 82 1174 2039 404 305 105 1275 3299 32 808 720 526 141 917 1136 32 1389 441 352 2348 832 3412 1605 956 1495 2813 1281 XP Spent 47490 | . 2900 500 4370 3400 3700 9550 . 1400 . . . 4120 1500 300 . . . 3500 . 1900 . . . . . 4350 1900 . . . . 4100 . . . . . Upgrades 50 | . 8 1 9 4 2 5 . 4 . . . 6 2 1 . . . 1 . 2 . . . . . 2 2 . . . . 1 . . . . . Power Slot 1 | . . . 1 . . . . . . . . . . . . . . . . . . . . . . . . . . . . . . . . . . Propulsion Slot 1 | . . 1 . . . . . . . . . . . . . . . . . . . . . . . . . . . . . . . . . . . Utility Slot 13 | . . . 3 1 2 3 . . . . . 1 . . . . . 1 . . . . . . . 1 . . . . . 1 . . . . . Weapon Slot 3 | . 1 . 1 1 . . . . . . . . . . . . . . . . . . . . . . . . . . . . . . . . . Heat Dissipation 2 | . . . 2 . . . . . . . . . . . . . . . . . . . . . . . . . . . . . . . . . . Energy Generation 3 | . . . . . . . . . . . . . . 1 . . . . . . . . . . . 1 1 . . . . . . . . . . Mass Support 11 | . 2 . 1 1 . . . 1 . . . 1 2 . . . . . . 2 . . . . . . 1 . . . . . . . . . . Inventory Capacity 4 | . . . 1 1 . 2 . . . . . . . . . . . . . . . . . . . . . . . . . . . . . . . Terrain Scan Density 4 | . . . . . . . . . . . . 4 . . . . . . . . . . . . . . . . . . . . . . . . . Melee Accuracy 3 | . . . . . . . . 3 . . . . . . . . . . . . . . . . . . . . . . . . . . . . . Hack Attack % 2 | . 2 . . . . . . . . . . . . . . . . . . . . . . . . . . . . . . . . . . . . Hack Defense % 3 | . 3 . . . . . . . . . . . . . . . . . . . . . . . . . . . . . . . . . . . . Protomatter Created 20309 | . 127 100 591 854 735 1131 . 693 354 294 . 149 722 359 328 . 400 1663 . 1078 592 68 . 320 353 290 683 570 . 1488 475 1516 445 988 811 1188 944 Integrity Restored 20468 | . 255 317 1079 788 846 1951 . 1041 488 676 . 297 286 388 268 . 237 1721 . 419 272 234 119 422 261 53 987 201 . 1600 324 1182 397 701 226 1354 1078 Core 16353 | . 249 317 971 623 665 1561 . 820 392 568 . 191 233 316 219 . 199 1374 . 344 170 162 92 302 203 8 774 155 . 1258 227 893 344 567 184 1081 891 Parts 4115 | . 6 . 108 165 181 390 . 221 96 108 . 106 53 72 49 . 38 347 . 75 102 72 27 120 58 45 213 46 . 342 97 289 53 134 42 273 187 Protomatter Decayed 24397 | . 26 5 144 686 443 221 . 455 243 158 . 142 906 224 166 . 335 1358 . 1180 609 212 42 506 262 261 1069 495 . 1075 446 882 678 1194 529 9128 317 Game ------ Seed SurveybotHeatMachine Manual? 0 Play Time 08:42:23 Cumulative 153.8 hours Start 2020.01.17 @ 14:12:27 End 2020.02.01 @ 14:10:42 Sessions 15 Manual Loads 0 Difficulty Rogue Special Mode Winter2019/RPGLIKE Game No. 141 Rogue 141 Adventurer 0 Explorer 0 Win Type 6 Total 13 Types 11/0/0/1/0/0/1 Lore% 74 Gallery% 73 Achievement% 67 Wizard Run 0 Options --------- ASCII 0 Keyboard 0 Movement Numpad Keybinds 0 Fullscreen 2 Font 18/SmallcapsGlow Map View 76x50 Tactical HUD 1 Map Filters NONE Filters NONE Steam 1 RUN: 3ba36e45-54d6-4824-9325-b12d73bbe099